{"text_format":"1","workbook":"xlsx","n_sheets":4,"sheets":["Individual","Detalle","Conversion","Catálogos"],"not_rendered":{"charts":0,"images":1,"macros":1,"external_links":2,"defined_names":33,"comments":2,"pivot_tables":0},"unopened":[],"bounds":{"document_bytes":16777216,"sheet_cells":100000,"rows_first":2000,"rows_last":500,"rows_between":2000,"halvings":0,"cell_chars":16384,"cell_head_chars":4096},"cells_cut":0,"cells_raw":0,"read":"whole","date_system":"1900"}

{"sheet":"Individual","index":0,"n_rows":40,"n_cols":12,"rows_kept":40,"cut":false,"hidden":true,"merged":[[0,1,1,3],[0,0,1,0],[22,0,22,5]]}
[null,"Captura Individual de Empleados para Alta Masiva"]
[null,null,null,null,null,null,null,"Dato","Máximo","Obligatorio","Registro","CURP y RFC"]
[null,null,null,null,null,null,{"$f":"AND(G4:G40)","v":false}]
["Id","A",null,null,null,null,{"$f":"IF(LEN(B4)>=J4,ValidaLongitudYCaracteres(B4,I4),FALSE)","v":true},{"$f":"A4","v":"Id"},{"$f":"Detalle!C33","v":1},{"$f":"Detalle!C37","v":1},{"$f":"UPPER(B4)","v":"A"}]
["NOMBRE (S)",null,{"$f":"IF(LEN(B5)>I5,\"+\"&I5,\"\")","v":""},"EDO CIVIL",null,{"$f":"IF(LEN(K23)>I23,\"+\"&I23,\"\")","v":""},{"$f":"IF(LEN(B5)>=J5,ValidaLongitudYNombre(K5,I5),FALSE)","v":false},"NOMBRE (S)",{"$f":"Detalle!D33","v":30},{"$f":"Detalle!D37","v":2},{"$f":"MayuscYFiltra(B5)","v":""}]
["APELLIDO PATERNO",null,{"$f":"IF(LEN(B6)>I6,\"+\"&I6,\"\")","v":""},"PROFESIÓN","4 - EMPLEADO",{"$f":"IF(LEN(K24)>I24,\"+\"&I24,\"\")","v":""},{"$f":"IF(LEN(B6)>=J6,ValidaLongitudYNombre(K6,I6),FALSE)","v":false},"APELLIDO PATERNO",{"$f":"Detalle!E33","v":30},{"$f":"Detalle!E37","v":1},""]
["APELLIDO MATERNO",null,"","CORREO ELECTRONICO",null,{"$f":"IF(LEN(E7)>I25,\"+\"&I25,\"\")","v":""},{"$f":"IF(LEN(B7)>=J7,ValidaLongitudYNombre(K7,I7),FALSE)","v":false},"APELLIDO MATERNO",{"$f":"Detalle!F33","v":30},{"$f":"Detalle!F37","v":1},""]
["NOMBRE EN TARJETA",{"$f":"TRIM(LEFT(B5,IF(ISERROR(SEARCH(\" \",B5)),LEN(B5),SEARCH(\" \",B5)+1))&\" \"&B6)","v":""},"","NOMBRE COMPLETO DE BENEFICIARIO 1",null,{"$f":"IF(LEN(E8)>I26,\"+\"&I26,\"\")","v":""},{"$f":"IF(LEN(B8)>=J8,ValidaLongitudYLetras(K8,I8),FALSE)","v":false},"NOMBRE EN TARJETA",{"$f":"Detalle!G33","v":22},{"$f":"Detalle!G37","v":1},""]
["CALLE Y NUMERO",null,"","PARENTESCO 1",null,{"$f":"IF(LEN(K27)>I27,\"+\"&I27,\"\")","v":""},{"$f":"IF(LEN(B9)>=J9,ValidaLongitudYCaracteres(K9,I9),FALSE)","v":false},"CALLE Y NUMERO",{"$f":"Detalle!H33","v":35},{"$f":"Detalle!H37","v":2},""]
["COLONIA",null,"","% BENEF 1",1,{"$f":"IF(Porcentaje.Beneficiario1+E13+E16<>100%,\"<>\",\"\")","v":""},{"$f":"IF(LEN(B10)>=J10,ValidaLongitudYCaracteres(K10,I10),FALSE)","v":false},"COLONIA",{"$f":"Detalle!I33","v":35},{"$f":"Detalle!I37","v":2},""]
["DELEGACIÓN O MUNICIPIO",null,"","NOMBRE COMPLETO DE BENEFICIARIO 2",null,{"$f":"IF(LEN(E11)>I29,\"+\"&I29,\"\")","v":""},{"$f":"IF(LEN(B11)>=J11,ValidaLongitudYCaracteres(K11,I11),FALSE)","v":false},"DELEGACIÓN O MUNICIPIO",{"$f":"Detalle!J33","v":30},{"$f":"Detalle!J37","v":2},""]
["ESTADO",null,"","PARENTESCO 2",null,{"$f":"IF(LEN(K30)>I30,\"+\"&I30,\"\")","v":""},{"$f":"IF(LEN(B12)>=J12,ValidaLongitudYCaracteres(B12,I12),FALSE)","v":false},"ESTADO",{"$f":"Detalle!K33","v":3},{"$f":"Detalle!K37","v":2},{"$f":"UPPER(B12)","v":""}]
["CODIGO POSTAL",null,{"$f":"IF(LEN(B13)>I13,\"+\"&I13,\"\")","v":""},"% BENEF 2",null,{"$f":"IF(Porcentaje.Beneficiario1+E13+E16<>100%,\"<>\",\"\")","v":""},{"$f":"IF(LEN(B13)>=J13,ValidaLongitudYDigitos(B13,I13),FALSE)","v":false},{"$f":"A13","v":"CODIGO POSTAL"},{"$f":"Detalle!L33","v":10},{"$f":"Detalle!L37","v":1},{"$f":"UPPER(B13)","v":""}]
[{"$f":"\"FECHA DE NACIMIENTO (Min:\"&Edad.Minima&\" Años)\"","v":"FECHA DE NACIMIENTO (Min:18 Años)"},null,{"$f":"IF(LEN(K14)>I14,\"+\"&I14,\"\")","v":""},"NOMBRE COMPLETO DE BENEFICIARIO 3",null,{"$f":"IF(LEN(E14)>I32,\"+\"&I32,\"\")","v":""},{"$f":"IF(LEN(B14)>=J14,ValidaFechaYMayorEdad(K14,I14),FALSE)","v":false},"FECHA DE NACIMIENTO (Min:18 Años)",{"$f":"Detalle!M33","v":8},{"$f":"Detalle!M37","v":1},{"$f":"B14","v":"00:00:00"},{"$f":"B14","v":"00:00:00"}]
["SEXO (M-Masculino / F-Femenino)",null,{"$f":"IF(LEN(B15)>I15,\"+\"&I15,\"\")","v":""},"PARENTESCO 3",null,{"$f":"IF(LEN(K33)>I33,\"+\"&I33,\"\")","v":""},{"$f":"IF(OR(B15=\"F\",B15=\"M\"),TRUE,FALSE)","v":false},"SEXO (M-Masculino / F-Femenino)",{"$f":"Detalle!N33","v":1},{"$f":"Detalle!N37","v":1},{"$f":"UPPER(B15)","v":""},{"$f":"IF(K15=\"F\",\"M\",IF(K15=\"M\",\"H\",\"\"))","v":""}]
["CIUDAD DE NACIMIENTO",null,"","% BENEF 3",null,{"$f":"IF(Porcentaje.Beneficiario1+E13+E16<>100%,\"<>\",\"\")","v":""},{"$f":"IF(LEN(B16)>=J16,ValidaLongitudYCaracteres(K16,I16),FALSE)","v":false},"CIUDAD DE NACIMIENTO",{"$f":"Detalle!O33","v":30},{"$f":"Detalle!O37","v":1},{"$f":"MayuscYFiltra(B16)","v":""}]
["ESTADO NACIMIENTO ",null,"","CLIENTE (0)",null,{"$f":"IF(LEN(E17)>I35,\"+\"&I35,\"\")","v":""},{"$f":"IF(LEN(B17)>=J17,ValidaLongitudYCaracteres(B17,I17),FALSE)","v":false},"ESTADO NACIMIENTO ",{"$f":"Detalle!P33","v":3},{"$f":"Detalle!P37","v":1},{"$f":"UPPER(B17)","v":""},{"$f":"VLOOKUP(K17,Tabla.EDO.CURP[],3,FALSE)","v":{"$error":"#N/A"}}]
["RFC",null,"","CUENTA(0)",null,{"$f":"IF(LEN(E18)>I36,\"+\"&I36,\"\")","v":""},{"$f":"IF(LEN(B18)>=J18,ValidaLongitudYCaracteres(B18,I18),FALSE)","v":false},"RFC",{"$f":"Detalle!Q33","v":13},{"$f":"Detalle!Q37","v":13},"",{"$f":"GeneraRFC(K5,K6,K7,L14)","v":""}]
["CURP",null,"","NUMERO DE TARJETA",null,{"$f":"IF(LEN(E19)>I37,\"+\"&I37,\"\")","v":""},{"$f":"IF(LEN(B19)>=J19,ValidaLongitudYCaracteres(B19,I19),FALSE)","v":false},"CURP",{"$f":"Detalle!R33","v":18},{"$f":"Detalle!R37","v":18},"",{"$f":"IFERROR(GeneraCURP(K5,K6,K7,L14,L15,L17),\"\")","v":""}]
["TEL CASA (10 dígitos - con clave lada)",null,"","INGRESO BRUTO MENSUAL",null,{"$f":"IF(LEN(K38)>I38,\"+\"&I38,\"\")","v":""},{"$f":"IF(LEN(B20)>=J20,ValidaLongitudYDigitos(B20,I20),FALSE)","v":false},"TEL CASA (10 dígitos - con clave lada)",{"$f":"Detalle!S33","v":11},{"$f":"Detalle!S37","v":1},""]
["TEL OFICINA (10 dígitos - con clave lada)",null,"","IMAGEN",null,{"$f":"IF(LEN(E21)>I39,\"+\"&I39,\"\")","v":""},{"$f":"IF(LEN(B21)>=J21,ValidaLongitudYDigitos(B21,I21),FALSE)","v":false},"TEL OFICINA (10 dígitos - con clave lada)",{"$f":"Detalle!T33","v":11},{"$f":"Detalle!T37","v":1},""]
["CELULAR (10 dígitos - con clave lada)",null,"","CN",null,{"$f":"IF(LEN(E22)>I40,\"+\"&I40,\"\")","v":""},{"$f":"IF(LEN(B22)>=J22,ValidaLongitudYDigitos(B22,I22),FALSE)","v":false},"CELULAR (10 dígitos - con clave lada)",{"$f":"Detalle!U33","v":11},{"$f":"Detalle!U37","v":1},""]
["Tip: Al capturar cada celda darle <Enter> para que vaya la captura en orden.",null,null,null,null,null,{"$f":"IF(LEN(K23)>=J23,ValidaLongitudYCaracteres(K23,I23),FALSE)","v":false},{"$f":"D5","v":"EDO CIVIL"},{"$f":"Detalle!V33","v":1},{"$f":"Detalle!V37","v":1},{"$f":"IFERROR(VLOOKUP(E5,Tabla.Edo.Civil[],4,FALSE),\"\")","v":""}]
[null,null,null,null,null,null,{"$f":"IF(LEN(E6)>=J24,ValidaLongitudYCaracteres(K24,I24),FALSE)","v":true},{"$f":"D6","v":"PROFESIÓN"},{"$f":"Detalle!W33","v":1},{"$f":"Detalle!W37","v":1},{"$f":"VLOOKUP(E6,Tabla.Profesiones[],4,FALSE)","v":"4"}]
[null,null,null,null,null,null,{"$f":"IF(AND(J25=0, LEN(E7)=J25),TRUE,ValidaDireccionEMail(E7,I25))","v":true},"CORREO ELECTRONICO",{"$f":"Detalle!X33","v":55},{"$f":"Detalle!X37","v":0},{"$f":"E7","v":0}]
[null,null,null,null,null,null,{"$f":"IF(LEN(E8)>=J26,ValidaLongitudYNombre(K26,I26),FALSE)","v":false},"NOMBRE COMPLETO DE BENEFICIARIO 1",{"$f":"Detalle!Y33","v":45},{"$f":"Detalle!Y37","v":1},{"$f":"MayuscYFiltra(E8)","v":""}]
[null,null,null,null,null,null,{"$f":"IF(LEN(E9)>=J27,ValidaLongitudYCaracteres(K27,I27),FALSE)","v":false},"PARENTESCO 1",{"$f":"Detalle!Z33","v":15},{"$f":"Detalle!Z37","v":1},{"$f":"IFERROR(VLOOKUP(E9,Tabla.Parentesco[],4,FALSE),\"\")","v":""}]
[null,null,null,null,null,null,{"$f":"AND(ValidaPorcentaje(E10),$E$10+$E$13+$E$16=1)","v":true},"% BENEF 1",{"$f":"Detalle!AA33","v":3},{"$f":"Detalle!AA37","v":1},{"$f":"E10","v":1}]
[null,null,null,null,null,null,{"$f":"IF(LEN(E11)>=J29,ValidaLongitudYCaracteres(E11,I29),FALSE)","v":true},"NOMBRE COMPLETO DE BENEFICIARIO 2",{"$f":"Detalle!AB33","v":45},{"$f":"Detalle!AB37","v":0},{"$f":"UPPER(E11)","v":""}]
[null,null,null,null,null,null,{"$f":"IF(LEN(E12)>=J30,ValidaLongitudYCaracteres(K30,I30),FALSE)","v":true},"PARENTESCO 2",{"$f":"Detalle!AC33","v":15},{"$f":"Detalle!AC37","v":0},{"$f":"IFERROR(VLOOKUP(E12,Tabla.Parentesco[],4,FALSE),\"\")","v":""}]
[null,null,null,null,null,null,{"$f":"AND(ValidaPorcentaje(E13),$E$10+$E$13+$E$16=1)","v":true},"% BENEF 2",{"$f":"Detalle!AD33","v":3},{"$f":"Detalle!AD37","v":0},{"$f":"E13","v":0}]
[null,null,null,null,null,null,{"$f":"IF(LEN(E14)>=J32,ValidaLongitudYCaracteres(E14,I32),FALSE)","v":true},"NOMBRE COMPLETO DE BENEFICIARIO 3",{"$f":"Detalle!AE33","v":45},{"$f":"Detalle!AE37","v":0},{"$f":"UPPER(E14)","v":""}]
[null,null,null,null,null,null,{"$f":"IF(LEN(E15)>=J33,ValidaLongitudYCaracteres(K33,I33),FALSE)","v":true},"PARENTESCO 3",{"$f":"Detalle!AF33","v":15},{"$f":"Detalle!AF37","v":0},{"$f":"IFERROR(VLOOKUP(E15,Tabla.Parentesco[],4,FALSE),\"\")","v":""}]
[null,null,null,null,null,null,{"$f":"AND(ValidaPorcentaje(E16),$E$10+$E$13+$E$16=1)","v":true},"% BENEF 3",{"$f":"Detalle!AG33","v":3},{"$f":"Detalle!AG37","v":0},{"$f":"E16","v":0}]
[null,null,null,null,null,null,{"$f":"IF(LEN(E17)>=J35,ValidaLongitudYDigitos(E17,I35),FALSE)","v":true},"CLIENTE (0)",{"$f":"Detalle!AL33","v":9},{"$f":"Detalle!AL37","v":0},{"$f":"UPPER(E17)","v":""}]
[null,null,null,null,null,null,{"$f":"IF(LEN(E18)>=J36,ValidaLongitudYDigitos(E18,I36),FALSE)","v":true},"CUENTA(0)",{"$f":"Detalle!AM33","v":12},{"$f":"Detalle!AM37","v":0},{"$f":"UPPER(E18)","v":""}]
[null,null,null,null,null,null,{"$f":"IF(LEN(E19)>=J37,ValidaLongitudYDigitos(E19,I37),FALSE)","v":true},"NUMERO DE TARJETA",{"$f":"Detalle!AH33","v":18},{"$f":"Detalle!AH37","v":0},{"$f":"UPPER(E19)","v":""}]
[null,null,null,null,null,null,{"$f":"IF(AND(K38>0,LEN(K38)>=J38),ValidaLongitudYDigitos(K38,I38),FALSE)","v":false},"INGRESO BRUTO MENSUAL",{"$f":"Detalle!AI33","v":"15"},{"$f":"Detalle!AI37","v":1},{"$f":"E20","v":0}]
[null,null,null,null,null,null,{"$f":"IF(LEN(E21)>=J39,ValidaLongitudYCaracteres(E21,I39),FALSE)","v":false},"IMAGEN",{"$f":"Detalle!AJ33","v":2},{"$f":"Detalle!AJ37","v":1},{"$f":"UPPER(E21)","v":""}]
[null,null,null,null,null,null,{"$f":"IF(LEN(E22)>=J40,ValidaLongitudYCaracteres(E22,I40),FALSE)","v":false},"CN",{"$f":"Detalle!AK33","v":3},{"$f":"Detalle!AK37","v":1},{"$f":"UPPER(E22)","v":""}]

{"sheet":"Detalle","index":1,"n_rows":40,"n_cols":46,"rows_kept":40,"cut":false,"hidden":false,"merged":[[31,1,36,1],[0,45,7,45],[7,1,7,3],[7,4,7,5]]}
[null,null,null,null,null,null,null,null,null,null,null,null,null,null,null,null,null,null,null,null,null,null,null,null,null,null,null,null,null,null,null,null,null,null,null,null,null,null,null,null,null,null,null,null,null,"No Insertar ni Capturar nada a partir de esta columna"]
[]
[]
[]
[]
[]
[]
[null,"Instrucciones para llenar tabla (posicionar Mouse sobre la celda).",null,null,"Pasos para generar el Archivo Texto (posicionar Mouse sobre la celda)"]
[]
[]
[]
[]
[]
[]
["\" E N C A B E Z A D O \"",null,null,null,null,null,null,null,"* Campos Obligatorios","Division"]
["Nombre Campo",null,"Id","Nombre de la Empresa","Número de Cliente","Número de Registro","Fecha",null,null,2]
["Longitud",null,1,35,9,5,8,null,null,46]
["Pos Inicial",null,1,2,37,48,53,null,null,47]
["Pos Final",null,1,36,45,52,60,null,null,"* "]
[null,null,null,"* ","* ","* ","* ",null,null,"Division"]
[null,null,"Id","NOMBRE DE LA EMPRESA","NUMERO DE CLIENTE","NUMERO DE REGISTRO","FECHA",null,"Validación de Tabla",0]
[null,null,"C",null,null,null,{"$f":"TODAY()","v":"2019-09-12"}]
[]
[null,null,"S, SEXO M = MASCULINO, F = FEMENINO "]
[null,null,"C, ESTADO CIVIL 1=SOLTERO, 2=CASADO, 3=DIVORCIADO, 4=VIUDO, 5=COHABITADO"]
[null,null,"PRO, PROFESION 1 = ACCIONISTA, 2 =COMERCIANTE, 3 = COMISIONISTA, 4 = EMPLEADO, 5 = INDEPENDIENTE, 6 = OBRERO, 7 = EMPRESARIO, 8 = PRESTADOR DE SERVICIOS, 9 = OTROS"]
[null,null,"IMAGEN, 01 VISION NOMINA, 09 L1DER NOMINA, 11 VISION IMSS"]
[null,null,"CN, 000"]
[null,null,"Estado de Nacimiento, se deben de ocupar máximo 3 caracteres en esta columna, contando los espacios dejados en blanco.Lista de abreviaturas para los Estados de la República:AGS Aguascalientes, BCN Baja California Norte, BCS Baja California Sur, CAM Campeche, CHS Chiapas, COH Coahuila, COL Colima, DF Distrito Federal, DGO Durango, EM Estado de México, GRO Guerrero, GTO Guanajuato, HGO Hidalgo, JAL Jalisco, MIC Michoacán, MOR Morelos, NAY Nayarit, NL Nuevo León, OAX Oaxaca, PUE Puebla, QR Quintana Roo, QRO Querétaro, SIN Sinaloa, SLP San Luis Potosí, SON Sonora, TAB Tabasco, TAM Tamaulipas, TLA Tlaxcala, VER Veracruz, YUC Yucatán y ZAC Zacatecas\nDato Obligatorio"]
[null,null,"Se escribe el parentesco que guarda con el empleado. (Hay que usar el catalogo) A    PADRE,  B    MADRE,  C    ESPOSO (A)\nD    HIJO (A),  E  HERMANO(A),  F ABUELO(A),  G  NIETO(A),  H  TIO(A),  I    PRIMO(A),  J  SOBRINO(A),  K  CUÑADO(A),  L  YERNO, M  NUERA, N  AMIGO(A),  O  CONOCIDO(A), P  OTRO"]
[]
["Nombre Campo","NO Mover estos Renglones o la Macro deja de funcionar","Id","Nombre","Ap Paterno","Ap Materno","Nombre Corto","Calle y Número","Colonia","Población","Edo","Cod Postal","Fecha Nac","Sex","Ciudad Nacimiento","Edo Nac","RFC","CURP","Tel Part","Tel Ofi","Celular","Edo Civil","Profesion","Correo Electrónico","Beneficiario 1","Parentesco 1","Porcentaje 1","Beneficiario 2","Parentesco 2","Porcentaje 2","Beneficiario 3","Parentesco 3","Porcentaje 3","Tarjeta","Ingreso Bruto Mensual","Imagen","CN","Cliente","Cuenta"]
["Longitud",null,1,30,30,30,22,35,35,30,3,10,8,1,30,3,13,18,11,11,11,1,1,55,45,15,3,45,15,3,45,15,3,18,"15",2,3,9,12,0]
["Pos Inicial",null,1,{"$f":"C35+1","v":2},{"$f":"D35+1","v":32},62,92,114,149,184,214,{"$f":"U35+1","v":283},{"$f":"P35+1","v":326},{"$f":"K35+1","v":217},{"$f":"L35+1","v":293},{"$f":"O35+1","v":323},{"$f":"V35+1","v":219},232,250,261,272,{"$f":"N35+1","v":218},{"$f":"M35+1","v":334},335,390,435,450,453,498,513,516,561,576,{"$f":"AM35+1","v":600},{"$f":"AH35+1","v":618},{"$f":"AI35+1","v":633},{"$f":"AJ35+1","v":635},{"$f":"AG35+1","v":579},{"$f":"AL35+1","v":588}]
["Pos Final",null,1,{"$f":"C35+D33","v":31},{"$f":"D35+E33","v":61},91,113,148,183,213,216,{"$f":"U35+L33","v":292},{"$f":"P35+M33","v":333},{"$f":"K35+N33","v":217},{"$f":"L35+O33","v":322},{"$f":"O35+P33","v":325},{"$f":"V35+Q33","v":231},249,260,271,282,{"$f":"N35+V33","v":218},{"$f":"M35+W33","v":334},389,434,449,452,497,512,515,560,575,578,{"$f":"AM35+AH33","v":617},{"$f":"AH35+AI33","v":632},{"$f":"AI35+AJ33","v":634},{"$f":"AJ35+AK33","v":637},{"$f":"AG35+AL33","v":587},{"$f":"AL35+AM33","v":599}]
["Validación",null,"Car","Nom","Nom","Nom","Letras","Car","Car","Car","Edo","Num","Fecha","Car","Car","Edo","Car","Car","Num","Num","Num","Car","Car","Correo","Car","Car","Pct","Car","Car","Pct","Car","Car","Pct","Num","Monto","Car","Car","Num","Num"]
["Obligatorio >= 1",null,1,2,1,1,1,2,2,2,2,1,1,1,1,1,13,18,1,1,1,1,1,0,1,1,1,0,0,0,0,0,0,0,1,1,1,0,0]
[null,"* ","* ","* ","* ","* ","* ","* ","* ","* ","* ","* ","*","* ","* ","* ","* ",null,"* ",null,"*","* ","* ","*","* ","* ",null,null,null,null,null,null,null,"* ","*","* ","* "]
["Registro","No","Id","NOMBRE (S)","APELLIDO PATERNO","APELLIDO MATERNO","NOMBRE EN TARJETA","CALLE Y NUMERO","COLONIA","DELEGACIÓN O MUNICIPIO","ESTADO","CODIGO POSTAL","FECHA DE NACIMIENTO","SEXO","CIUDAD DE NACIMIENTO","ESTADO NACIMIENTO","RFC","CURP","TEL CASA","TEL OFICINA","CELULAR","EDO CIVIL","PROFESIÓN","CORREO ELECTRONICO","NOMBRE COMPLETO DE BENEFICIARIO 1","PARENTESCO 1","% BENEF 1","NOMBRE COMPLETO DE BENEFICIARIO 2","PARENTESCO 2","% BENEF 2","NOMBRE COMPLETO DE BENEFICIARIO 3","PARENTESCO 3","% BENEF 3","NUMERO DE TARJETA","INGRESO BRUTO MENSUAL","IMAGEN","CN","CLIENTE (0)","CUENTA(0)","Fecha.RFCyCURP","Sexo.CURP","Edo.Nacimiento.Curp","RFC.Calculado","CURP.Calculado"]
[null,{"$f":"IF(ISNUMBER(B39),B39+1,1)","v":1},{"$f":"\"A\"","v":"A"},null,null,null,{"$f":"SUBSTITUTE(TRIM(LEFT(D40,IF(ISERROR(SEARCH(\" \",D40)),LEN(D40),SEARCH(\" \",D40)+1))&\" \"&E40),\".\",\"\")","v":""},null,null,null,null,null,null,null,null,null,null,null,null,null,null,null,null,null,null,null,null,null,null,null,null,null,null,null,null,null,null,null,null,{"$f":"IF(ISNUMBER(Tabla.Datos[[#This Row],[FECHA DE NACIMIENTO]]),Tabla.Datos[[#This Row],[FECHA DE NACIMIENTO]],\"#\")","v":"#"},{"$f":"IF(Tabla.Datos[[#This Row],[SEXO]]=\"F\",\"M\",IF(Tabla.Datos[[#This Row],[SEXO]]=\"M\",\"H\",\"#\"))","v":"#"},{"$f":"IFERROR(VLOOKUP(TRIM(Tabla.Datos[[#This Row],[ESTADO NACIMIENTO]]),Tabla.EDO.CURP[#Data],3,FALSE),\"#\")","v":"#"},{"$f":"IFERROR(GeneraRFC(Tabla.Datos[[#This Row],[NOMBRE (S)]],Tabla.Datos[[#This Row],[APELLIDO PATERNO]],Tabla.Datos[[#This Row],[APELLIDO MATERNO]],Tabla.Datos[[#This Row],[Fecha.RFCyCURP]]),\"#Falta Fecha de Nacimiento\")","v":"#Falta Fecha de Nacimiento"},{"$f":"IFERROR(GeneraCURP(Tabla.Datos[[#This Row],[NOMBRE (S)]],Tabla.Datos[[#This Row],[APELLIDO PATERNO]],Tabla.Datos[[#This Row],[APELLIDO MATERNO]],Tabla.Datos[[#This Row],[Fecha.RFCyCURP]],Tabla.Datos[[#This Row],[Sexo.CURP]],Tabla.Datos[[#This Row],[Edo.Nacimiento.Curp]]),\"#Falta Fecha de Nacimiento\")","v":"#Falta Fecha de Nacimiento"}]

{"sheet":"Conversion","index":2,"n_rows":2,"n_cols":66,"rows_kept":2,"cut":false,"hidden":true,"merged":[]}
[1,{"$f":"+CONCATENATE(C1,D1,E1,F1,G1,H1)","v":"C                                   000000000000000020190912"},{"$f":"Detalle!C22&REPT(\" \",Detalle!$C$17-LEN(Detalle!C22))","v":"C"},{"$f":"Detalle!D22&REPT(\" \",Detalle!$D$17-LEN(Detalle!D22))","v":"                                   "},{"$f":"REPT(0,Detalle!$E$17-LEN(Detalle!E22))&Detalle!E22","v":"000000000"},{"$f":"REPT(0,Detalle!$J$16-LEN(Detalle!J21))&Detalle!J21","v":"00"},{"$f":"REPT(0,Detalle!$F$17-LEN(Detalle!F22))&Detalle!F22","v":"00000"},{"$f":"TEXT(Detalle!G22,\"AAAAMMDD\")","v":"20190912"},{"$f":"Detalle!I22&REPT(\" \",Detalle!$C$17-LEN(Detalle!I22))","v":" "},null,null,null,{"$f":"REPT(0,Detalle!$F$17-LEN(Detalle!V22))&Detalle!V22","v":"00000"}]
[{"$f":"IF(C2=\"a\",1,\"\")","v":1},{"$f":"+CONCATENATE(C2,D2,E2,F2,G2,H2,I2,J2,K2,L2,M2,N2,O2,P2,Q2,R2,S2,T2,U2,V2,W2,X2,Y2,Z2,AA2,AB2,AC2,AD2,AE2,AF2,AG2,AQ2)","v":"A                                                                                                                                                                                                                                                                                                                                    19000100                                                                                                                                                                                                                                                                                            0                   "},{"$f":"LEFT(Detalle!C40&REPT(\" \",Detalle!C$33),Detalle!C$33)","v":"A"},{"$f":"LEFT(Detalle!D40&REPT(\" \",Detalle!D$33),Detalle!D$33)","v":"                              "},{"$f":"LEFT(Detalle!E40&REPT(\" \",Detalle!E$33),Detalle!E$33)","v":"                              "},{"$f":"LEFT(Detalle!F40&REPT(\" \",Detalle!F$33),Detalle!F$33)","v":"                              "},{"$f":"LEFT(Detalle!G40&REPT(\" \",Detalle!G$33),Detalle!G$33)","v":"                      "},{"$f":"LEFT(Detalle!H40&REPT(\" \",Detalle!H$33),Detalle!H$33)","v":"                                   "},{"$f":"LEFT(Detalle!I40&REPT(\" \",Detalle!I$33),Detalle!I$33)","v":"                                   "},{"$f":"LEFT(Detalle!J40&REPT(\" \",Detalle!J$33),Detalle!J$33)","v":"                              "},{"$f":"LEFT(Detalle!K40&REPT(\" \",Detalle!K$33),Detalle!K$33)","v":"   "},{"$f":"LEFT(Detalle!N40&REPT(\" \",Detalle!N$33),Detalle!N$33)","v":" "},{"$f":"LEFT(Detalle!V40&REPT(\" \",Detalle!V$33),Detalle!V$33)","v":" "},{"$f":"LEFT(Detalle!Q40&REPT(\" \",Detalle!Q$33),Detalle!Q$33)","v":"             "},{"$f":"LEFT(Detalle!R40&REPT(\" \",Detalle!R$33),Detalle!R$33)","v":"                  "},{"$f":"LEFT(Detalle!S40&REPT(\" \",Detalle!S$33),Detalle!S$33)","v":"           "},{"$f":"LEFT(Detalle!T40&REPT(\" \",Detalle!T$33),Detalle!T$33)","v":"           "},{"$f":"LEFT(Detalle!U40&REPT(\" \",Detalle!U$33),Detalle!U$33)","v":"           "},{"$f":"LEFT(Detalle!L40&REPT(\" \",Detalle!L$33),Detalle!L$33)","v":"          "},{"$f":"LEFT(Detalle!O40&REPT(\" \",Detalle!O$33),Detalle!O$33)","v":"                              "},{"$f":"LEFT(Detalle!P40&REPT(\" \",Detalle!P$33),Detalle!P$33)","v":"   "},{"$f":"LEFT(TEXT(Detalle!M40,\"AAAAMMDD\")&REPT(\" \",Detalle!M$33),Detalle!M$33)","v":"19000100"},{"$f":"LEFT(Detalle!W40&REPT(\" \",Detalle!W$33),Detalle!W$33)","v":" "},{"$f":"LEFT(Detalle!X40&REPT(\" \",Detalle!X$33),Detalle!X$33)","v":"                                                       "},{"$f":"LEFT(Detalle!Y40&REPT(\" \",Detalle!Y$33),Detalle!Y$33)","v":"                                             "},{"$f":"LEFT(Detalle!Z40&REPT(\" \",Detalle!Z$33),Detalle!Z$33)","v":"               "},{"$f":"LEFT(TEXT(Detalle!AA40*100,\"#\")&\"   \",Detalle!AA$33)","v":"   "},{"$f":"LEFT(Detalle!AB40&REPT(\" \",Detalle!AB$33),Detalle!AB$33)","v":"                                             "},{"$f":"LEFT(Detalle!AC40&REPT(\" \",Detalle!AC$33),Detalle!AC$33)","v":"               "},{"$f":"LEFT(TEXT(Detalle!AD40*100,\"#\")&\"   \",Detalle!AD$33)","v":"   "},{"$f":"LEFT(Detalle!AE40&REPT(\" \",Detalle!AE$33),Detalle!AE$33)","v":"                                             "},{"$f":"LEFT(Detalle!AF40&REPT(\" \",Detalle!AF$33),Detalle!AF$33)","v":"               "},{"$f":"LEFT(TEXT(Detalle!AG40*100,\"#\")&\"   \",Detalle!AG$33)","v":"   "},{"$f":"LEFT(Detalle!AL40&REPT(\" \",Detalle!AL$33),Detalle!AL$33)","v":"         "},{"$f":"LEFT(Detalle!AM40&REPT(\" \",Detalle!AM$33),Detalle!AM$33)","v":"            "},{"$f":"LEFT(Detalle!AH40&REPT(\" \",Detalle!AH$33),Detalle!AH$33)","v":"                  "},{"$f":"LEFT(TEXT(Detalle!AI40*100,\"0\")&REPT(\" \",Detalle!AI$33),Detalle!AI$33)","v":"0              "},{"$f":"LEFT(Detalle!AJ40&REPT(\" \",Detalle!AJ$33),Detalle!AJ$33)","v":"  "},{"$f":"LEFT(Detalle!AK40&REPT(\" \",Detalle!AK$33),Detalle!AK$33)","v":"   "},{"$f":"Detalle!AN40&REPT(\" \",Detalle!AN$33-LEN(Detalle!AN40))","v":{"$error":"#VALUE!"}},{"$f":"Detalle!AO40&REPT(\" \",Detalle!AO$33-LEN(Detalle!AO40))","v":{"$error":"#VALUE!"}},{"$f":"Detalle!AP40&REPT(\" \",Detalle!AP$33-LEN(Detalle!AP40))","v":{"$error":"#VALUE!"}},{"$f":"CONCATENATE(AH2,AI2,AJ2,AK2,AL2,AM2)","v":"                                       0                   "},null,{"$f":"IFERROR(Detalle!AR40&REPT(\" \",Detalle!#REF!-LEN(Detalle!AR40)),\"\")","v":""},{"$f":"IFERROR(Detalle!AT40&REPT(\" \",Detalle!#REF!-LEN(Detalle!AT40)),\"\")","v":""},{"$f":"IFERROR(Detalle!#REF!&REPT(\" \",Detalle!#REF!-LEN(Detalle!#REF!)),\"\")","v":""},{"$f":"IFERROR(Detalle!#REF!&REPT(\" \",Detalle!#REF!-LEN(Detalle!#REF!)),\"\")","v":""},{"$f":"IFERROR(Detalle!#REF!&REPT(\" \",Detalle!#REF!-LEN(Detalle!#REF!)),\"\")","v":""},{"$f":"IFERROR(Detalle!#REF!&REPT(\" \",Detalle!#REF!-LEN(Detalle!#REF!)),\"\")","v":""},{"$f":"IFERROR(Detalle!#REF!&REPT(\" \",Detalle!#REF!-LEN(Detalle!#REF!)),\"\")","v":""},{"$f":"IFERROR(Detalle!#REF!&REPT(\" \",Detalle!#REF!-LEN(Detalle!#REF!)),\"\")","v":""},{"$f":"IFERROR(Detalle!#REF!&REPT(\" \",Detalle!#REF!-LEN(Detalle!#REF!)),\"\")","v":""},{"$f":"IFERROR(Detalle!#REF!&REPT(\" \",Detalle!#REF!-LEN(Detalle!#REF!)),\"\")","v":""},{"$f":"IFERROR(Detalle!#REF!&REPT(\" \",Detalle!#REF!-LEN(Detalle!#REF!)),\"\")","v":""},{"$f":"IFERROR(Detalle!#REF!&REPT(\" \",Detalle!#REF!-LEN(Detalle!#REF!)),\"\")","v":""},{"$f":"IFERROR(Detalle!#REF!&REPT(\" \",Detalle!#REF!-LEN(Detalle!#REF!)),\"\")","v":""},{"$f":"IFERROR(Detalle!#REF!&REPT(\" \",Detalle!#REF!-LEN(Detalle!#REF!)),\"\")","v":""},{"$f":"IFERROR(Detalle!#REF!&REPT(\" \",Detalle!#REF!-LEN(Detalle!#REF!)),\"\")","v":""},{"$f":"IFERROR(Detalle!#REF!&REPT(\" \",Detalle!#REF!-LEN(Detalle!#REF!)),\"\")","v":""},{"$f":"IFERROR(Detalle!#REF!&REPT(\" \",Detalle!#REF!-LEN(Detalle!#REF!)),\"\")","v":""},{"$f":"IFERROR(Detalle!#REF!&REPT(\" \",Detalle!#REF!-LEN(Detalle!#REF!)),\"\")","v":""},{"$f":"IFERROR(Detalle!#REF!&REPT(\" \",Detalle!#REF!-LEN(Detalle!#REF!)),\"\")","v":""},{"$f":"IFERROR(Detalle!#REF!&REPT(\" \",Detalle!#REF!-LEN(Detalle!#REF!)),\"\")","v":""},{"$f":"IFERROR(Detalle!#REF!&REPT(\" \",Detalle!#REF!-LEN(Detalle!#REF!)),\"\")","v":""},{"$f":"IFERROR(Detalle!#REF!&REPT(\" \",Detalle!#REF!-LEN(Detalle!#REF!)),\"\")","v":""}]

{"sheet":"Catálogos","index":3,"n_rows":182,"n_cols":5,"rows_kept":182,"cut":false,"hidden":true,"merged":[]}
["NO ELIMINAR CELDAS EN AMARILLO"]
[]
["Valores"]
["Edad Mínima",18,"años"]
[]
[]
[]
[]
["Estado Civil"]
["Descripción ","Vacío","Vacío 2","Código E.C."]
["1 - SOLTERO(A)",null,null,{"$f":"LEFT(A11,1)","v":"1"}]
["2 - CASADO(A)",null,null,"2"]
["3 - DIVORCIADO(A)",null,null,"3"]
["4 - VIUDO(A)",null,null,"4"]
["5 - COHABITANDO",null,null,"5"]
["6 - SEPARADO(A)",null,null,"6"]
["7 - CASADO(A) BIENES SEPARADOS",null,null,"7"]
[]
[]
[]
["Profesiones"]
["Descripción ","Vacío","Vacío 2","Código E.C."]
["1 - ACCIONISTA",null,null,{"$f":"LEFT(A23,1)","v":"1"}]
["2 - COMERCIANTE",null,null,"2"]
["3 - COMISIONISTA",null,null,"3"]
["4 - EMPLEADO",null,null,"4"]
["5 - INDEPENDIENTE",null,null,"5"]
["6 - OBRERO",null,null,"6"]
["7 - EMPRESARIO",null,null,"7"]
["8 - PRESTADOR DE SEVICIOS",null,null,"8"]
["9 - OTROS",null,null,"9"]
[]
[]
["Parentesco"]
["Descripción ","Vacío","Vacío 2","Código E.C."]
["A - PADRE",null,null,{"$f":"LEFT(A36,1)","v":"A"}]
["B - MADRE",null,null,"B"]
["C - ESPOSO  (A)",null,null,"C"]
["D - HIJO (A)",null,null,"D"]
["E - HERMANO(A)",null,null,"E"]
["F - ABUELO(A)",null,null,"F"]
["G - NIETO(A)",null,null,"G"]
["H - TIO(A)",null,null,"H"]
["I - PRIMO(A)",null,null,"I"]
["J - SOBRINO(A)",null,null,"J"]
["K - CUÑADO(A)",null,null,"K"]
["L - YERNO",null,null,"L"]
["M - NUERA",null,null,"M"]
["N - AMIGO(A)",null,null,"N"]
["O - CONOCIDO(A)",null,null,"O"]
["P - OTRO",null,null,"P"]
[]
[]
[]
["Caracteres Válidos"]
["Cadena Caracteres","Descripción","Vacío 2","Concatenado"]
["ABCDEFGHIJKLMNÑOPQRSTUVWXYZ ","Letras y Espacio",null,{"$f":"Tabla.Caracteres.Validos[[#This Row],[Cadena Caracteres]]","v":"ABCDEFGHIJKLMNÑOPQRSTUVWXYZ "}]
[".-/","Especiales (incluye espacio)",null,{"$f":"D57&Tabla.Caracteres.Validos[[#This Row],[Cadena Caracteres]]","v":"ABCDEFGHIJKLMNÑOPQRSTUVWXYZ .-/"}]
["0123456789","Dígitos",null,{"$f":"D58&Tabla.Caracteres.Validos[[#This Row],[Cadena Caracteres]]","v":"ABCDEFGHIJKLMNÑOPQRSTUVWXYZ .-/0123456789"}]
[{"$f":"SUBTOTAL(103,Tabla.Caracteres.Validos[Cadena Caracteres])","v":3},null,null,{"$f":"D59","v":"ABCDEFGHIJKLMNÑOPQRSTUVWXYZ .-/0123456789"}]
[]
["Palabras Inconvenientes"]
["Palabra Inconveniente","Sustituye","Vacía","Concatena"]
["BACA","BXCA",null,{"$f":"Tabla.Palabras.Inconvenientes[[#This Row],[Palabra Inconveniente]]&\"*\"","v":"BACA*"}]
["BAKA","BXKA",null,{"$f":"D64&Tabla.Palabras.Inconvenientes[[#This Row],[Palabra Inconveniente]]&\"*\"","v":"BACA*BAKA*"}]
["BUEI","BXEI",null,{"$f":"D65&Tabla.Palabras.Inconvenientes[[#This Row],[Palabra Inconveniente]]&\"*\"","v":"BACA*BAKA*BUEI*"}]
["BUEY","BXEY",null,{"$f":"D66&Tabla.Palabras.Inconvenientes[[#This Row],[Palabra Inconveniente]]&\"*\"","v":"BACA*BAKA*BUEI*BUEY*"}]
["CACA","CXCA",null,{"$f":"D67&Tabla.Palabras.Inconvenientes[[#This Row],[Palabra Inconveniente]]&\"*\"","v":"BACA*BAKA*BUEI*BUEY*CACA*"}]
["CACO","CXCO",null,{"$f":"D68&Tabla.Palabras.Inconvenientes[[#This Row],[Palabra Inconveniente]]&\"*\"","v":"BACA*BAKA*BUEI*BUEY*CACA*CACO*"}]
["CAGA","CXGA",null,{"$f":"D69&Tabla.Palabras.Inconvenientes[[#This Row],[Palabra Inconveniente]]&\"*\"","v":"BACA*BAKA*BUEI*BUEY*CACA*CACO*CAGA*"}]
["CAGO","CXGO",null,{"$f":"D70&Tabla.Palabras.Inconvenientes[[#This Row],[Palabra Inconveniente]]&\"*\"","v":"BACA*BAKA*BUEI*BUEY*CACA*CACO*CAGA*CAGO*"}]
["CAKA","CXKA",null,{"$f":"D71&Tabla.Palabras.Inconvenientes[[#This Row],[Palabra Inconveniente]]&\"*\"","v":"BACA*BAKA*BUEI*BUEY*CACA*CACO*CAGA*CAGO*CAKA*"}]
["CAKO","CXKO",null,{"$f":"D72&Tabla.Palabras.Inconvenientes[[#This Row],[Palabra Inconveniente]]&\"*\"","v":"BACA*BAKA*BUEI*BUEY*CACA*CACO*CAGA*CAGO*CAKA*CAKO*"}]
["COGE","CXGE",null,{"$f":"D73&Tabla.Palabras.Inconvenientes[[#This Row],[Palabra Inconveniente]]&\"*\"","v":"BACA*BAKA*BUEI*BUEY*CACA*CACO*CAGA*CAGO*CAKA*CAKO*COGE*"}]
["COGI","CXGI",null,{"$f":"D74&Tabla.Palabras.Inconvenientes[[#This Row],[Palabra Inconveniente]]&\"*\"","v":"BACA*BAKA*BUEI*BUEY*CACA*CACO*CAGA*CAGO*CAKA*CAKO*COGE*COGI*"}]
["COJA","CXJA",null,{"$f":"D75&Tabla.Palabras.Inconvenientes[[#This Row],[Palabra Inconveniente]]&\"*\"","v":"BACA*BAKA*BUEI*BUEY*CACA*CACO*CAGA*CAGO*CAKA*CAKO*COGE*COGI*COJA*"}]
["COJE","CXJE",null,{"$f":"D76&Tabla.Palabras.Inconvenientes[[#This Row],[Palabra Inconveniente]]&\"*\"","v":"BACA*BAKA*BUEI*BUEY*CACA*CACO*CAGA*CAGO*CAKA*CAKO*COGE*COGI*COJA*COJE*"}]
["COJI","CXJI",null,{"$f":"D77&Tabla.Palabras.Inconvenientes[[#This Row],[Palabra Inconveniente]]&\"*\"","v":"BACA*BAKA*BUEI*BUEY*CACA*CACO*CAGA*CAGO*CAKA*CAKO*COGE*COGI*COJA*COJE*COJI*"}]
["COJO","CXJO",null,{"$f":"D78&Tabla.Palabras.Inconvenientes[[#This Row],[Palabra Inconveniente]]&\"*\"","v":"BACA*BAKA*BUEI*BUEY*CACA*CACO*CAGA*CAGO*CAKA*CAKO*COGE*COGI*COJA*COJE*COJI*COJO*"}]
["COLA","CXLA",null,{"$f":"D79&Tabla.Palabras.Inconvenientes[[#This Row],[Palabra Inconveniente]]&\"*\"","v":"BACA*BAKA*BUEI*BUEY*CACA*CACO*CAGA*CAGO*CAKA*CAKO*COGE*COGI*COJA*COJE*COJI*COJO*COLA*"}]
["CULO","CXLO",null,{"$f":"D80&Tabla.Palabras.Inconvenientes[[#This Row],[Palabra Inconveniente]]&\"*\"","v":"BACA*BAKA*BUEI*BUEY*CACA*CACO*CAGA*CAGO*CAKA*CAKO*COGE*COGI*COJA*COJE*COJI*COJO*COLA*CULO*"}]
["FALO","FXLO",null,{"$f":"D81&Tabla.Palabras.Inconvenientes[[#This Row],[Palabra Inconveniente]]&\"*\"","v":"BACA*BAKA*BUEI*BUEY*CACA*CACO*CAGA*CAGO*CAKA*CAKO*COGE*COGI*COJA*COJE*COJI*COJO*COLA*CULO*FALO*"}]
["FETO","FXTO",null,{"$f":"D82&Tabla.Palabras.Inconvenientes[[#This Row],[Palabra Inconveniente]]&\"*\"","v":"BACA*BAKA*BUEI*BUEY*CACA*CACO*CAGA*CAGO*CAKA*CAKO*COGE*COGI*COJA*COJE*COJI*COJO*COLA*CULO*FALO*FETO*"}]
["GETA","GXTA",null,{"$f":"D83&Tabla.Palabras.Inconvenientes[[#This Row],[Palabra Inconveniente]]&\"*\"","v":"BACA*BAKA*BUEI*BUEY*CACA*CACO*CAGA*CAGO*CAKA*CAKO*COGE*COGI*COJA*COJE*COJI*COJO*COLA*CULO*FALO*FETO*GETA*"}]
["GUEI","GXEI",null,{"$f":"D84&Tabla.Palabras.Inconvenientes[[#This Row],[Palabra Inconveniente]]&\"*\"","v":"BACA*BAKA*BUEI*BUEY*CACA*CACO*CAGA*CAGO*CAKA*CAKO*COGE*COGI*COJA*COJE*COJI*COJO*COLA*CULO*FALO*FETO*GETA*GUEI*"}]
["GUEY","GXEY",null,{"$f":"D85&Tabla.Palabras.Inconvenientes[[#This Row],[Palabra Inconveniente]]&\"*\"","v":"BACA*BAKA*BUEI*BUEY*CACA*CACO*CAGA*CAGO*CAKA*CAKO*COGE*COGI*COJA*COJE*COJI*COJO*COLA*CULO*FALO*FETO*GETA*GUEI*GUEY*"}]
["JETA","JXTA",null,{"$f":"D86&Tabla.Palabras.Inconvenientes[[#This Row],[Palabra Inconveniente]]&\"*\"","v":"BACA*BAKA*BUEI*BUEY*CACA*CACO*CAGA*CAGO*CAKA*CAKO*COGE*COGI*COJA*COJE*COJI*COJO*COLA*CULO*FALO*FETO*GETA*GUEI*GUEY*JETA*"}]
["JOTO","JXTO",null,{"$f":"D87&Tabla.Palabras.Inconvenientes[[#This Row],[Palabra Inconveniente]]&\"*\"","v":"BACA*BAKA*BUEI*BUEY*CACA*CACO*CAGA*CAGO*CAKA*CAKO*COGE*COGI*COJA*COJE*COJI*COJO*COLA*CULO*FALO*FETO*GETA*GUEI*GUEY*JETA*JOTO*"}]
["KACA","KXCA",null,{"$f":"D88&Tabla.Palabras.Inconvenientes[[#This Row],[Palabra Inconveniente]]&\"*\"","v":"BACA*BAKA*BUEI*BUEY*CACA*CACO*CAGA*CAGO*CAKA*CAKO*COGE*COGI*COJA*COJE*COJI*COJO*COLA*CULO*FALO*FETO*GETA*GUEI*GUEY*JETA*JOTO*KACA*"}]
["KACO","KXCO",null,{"$f":"D89&Tabla.Palabras.Inconvenientes[[#This Row],[Palabra Inconveniente]]&\"*\"","v":"BACA*BAKA*BUEI*BUEY*CACA*CACO*CAGA*CAGO*CAKA*CAKO*COGE*COGI*COJA*COJE*COJI*COJO*COLA*CULO*FALO*FETO*GETA*GUEI*GUEY*JETA*JOTO*KACA*KACO*"}]
["KAGA","KXGA",null,{"$f":"D90&Tabla.Palabras.Inconvenientes[[#This Row],[Palabra Inconveniente]]&\"*\"","v":"BACA*BAKA*BUEI*BUEY*CACA*CACO*CAGA*CAGO*CAKA*CAKO*COGE*COGI*COJA*COJE*COJI*COJO*COLA*CULO*FALO*FETO*GETA*GUEI*GUEY*JETA*JOTO*KACA*KACO*KAGA*"}]
["KAGO","KXGO",null,{"$f":"D91&Tabla.Palabras.Inconvenientes[[#This Row],[Palabra Inconveniente]]&\"*\"","v":"BACA*BAKA*BUEI*BUEY*CACA*CACO*CAGA*CAGO*CAKA*CAKO*COGE*COGI*COJA*COJE*COJI*COJO*COLA*CULO*FALO*FETO*GETA*GUEI*GUEY*JETA*JOTO*KACA*KACO*KAGA*KAGO*"}]
["KAKA","KXKA",null,{"$f":"D92&Tabla.Palabras.Inconvenientes[[#This Row],[Palabra Inconveniente]]&\"*\"","v":"BACA*BAKA*BUEI*BUEY*CACA*CACO*CAGA*CAGO*CAKA*CAKO*COGE*COGI*COJA*COJE*COJI*COJO*COLA*CULO*FALO*FETO*GETA*GUEI*GUEY*JETA*JOTO*KACA*KACO*KAGA*KAGO*KAKA*"}]
["KAKO","KXKO",null,{"$f":"D93&Tabla.Palabras.Inconvenientes[[#This Row],[Palabra Inconveniente]]&\"*\"","v":"BACA*BAKA*BUEI*BUEY*CACA*CACO*CAGA*CAGO*CAKA*CAKO*COGE*COGI*COJA*COJE*COJI*COJO*COLA*CULO*FALO*FETO*GETA*GUEI*GUEY*JETA*JOTO*KACA*KACO*KAGA*KAGO*KAKA*KAKO*"}]
["KOGE","KXGE",null,{"$f":"D94&Tabla.Palabras.Inconvenientes[[#This Row],[Palabra Inconveniente]]&\"*\"","v":"BACA*BAKA*BUEI*BUEY*CACA*CACO*CAGA*CAGO*CAKA*CAKO*COGE*COGI*COJA*COJE*COJI*COJO*COLA*CULO*FALO*FETO*GETA*GUEI*GUEY*JETA*JOTO*KACA*KACO*KAGA*KAGO*KAKA*KAKO*KOGE*"}]
["KOGI","KXGI",null,{"$f":"D95&Tabla.Palabras.Inconvenientes[[#This Row],[Palabra Inconveniente]]&\"*\"","v":"BACA*BAKA*BUEI*BUEY*CACA*CACO*CAGA*CAGO*CAKA*CAKO*COGE*COGI*COJA*COJE*COJI*COJO*COLA*CULO*FALO*FETO*GETA*GUEI*GUEY*JETA*JOTO*KACA*KACO*KAGA*KAGO*KAKA*KAKO*KOGE*KOGI*"}]
["KOJA","KXJA",null,{"$f":"D96&Tabla.Palabras.Inconvenientes[[#This Row],[Palabra Inconveniente]]&\"*\"","v":"BACA*BAKA*BUEI*BUEY*CACA*CACO*CAGA*CAGO*CAKA*CAKO*COGE*COGI*COJA*COJE*COJI*COJO*COLA*CULO*FALO*FETO*GETA*GUEI*GUEY*JETA*JOTO*KACA*KACO*KAGA*KAGO*KAKA*KAKO*KOGE*KOGI*KOJA*"}]
["KOJE","KXJE",null,{"$f":"D97&Tabla.Palabras.Inconvenientes[[#This Row],[Palabra Inconveniente]]&\"*\"","v":"BACA*BAKA*BUEI*BUEY*CACA*CACO*CAGA*CAGO*CAKA*CAKO*COGE*COGI*COJA*COJE*COJI*COJO*COLA*CULO*FALO*FETO*GETA*GUEI*GUEY*JETA*JOTO*KACA*KACO*KAGA*KAGO*KAKA*KAKO*KOGE*KOGI*KOJA*KOJE*"}]
["KOJI","KXJI",null,{"$f":"D98&Tabla.Palabras.Inconvenientes[[#This Row],[Palabra Inconveniente]]&\"*\"","v":"BACA*BAKA*BUEI*BUEY*CACA*CACO*CAGA*CAGO*CAKA*CAKO*COGE*COGI*COJA*COJE*COJI*COJO*COLA*CULO*FALO*FETO*GETA*GUEI*GUEY*JETA*JOTO*KACA*KACO*KAGA*KAGO*KAKA*KAKO*KOGE*KOGI*KOJA*KOJE*KOJI*"}]
["KOJO","KXJO",null,{"$f":"D99&Tabla.Palabras.Inconvenientes[[#This Row],[Palabra Inconveniente]]&\"*\"","v":"BACA*BAKA*BUEI*BUEY*CACA*CACO*CAGA*CAGO*CAKA*CAKO*COGE*COGI*COJA*COJE*COJI*COJO*COLA*CULO*FALO*FETO*GETA*GUEI*GUEY*JETA*JOTO*KACA*KACO*KAGA*KAGO*KAKA*KAKO*KOGE*KOGI*KOJA*KOJE*KOJI*KOJO*"}]
["KOLA","KXLA",null,{"$f":"D100&Tabla.Palabras.Inconvenientes[[#This Row],[Palabra Inconveniente]]&\"*\"","v":"BACA*BAKA*BUEI*BUEY*CACA*CACO*CAGA*CAGO*CAKA*CAKO*COGE*COGI*COJA*COJE*COJI*COJO*COLA*CULO*FALO*FETO*GETA*GUEI*GUEY*JETA*JOTO*KACA*KACO*KAGA*KAGO*KAKA*KAKO*KOGE*KOGI*KOJA*KOJE*KOJI*KOJO*KOLA*"}]
["KULO","KXLO",null,{"$f":"D101&Tabla.Palabras.Inconvenientes[[#This Row],[Palabra Inconveniente]]&\"*\"","v":"BACA*BAKA*BUEI*BUEY*CACA*CACO*CAGA*CAGO*CAKA*CAKO*COGE*COGI*COJA*COJE*COJI*COJO*COLA*CULO*FALO*FETO*GETA*GUEI*GUEY*JETA*JOTO*KACA*KACO*KAGA*KAGO*KAKA*KAKO*KOGE*KOGI*KOJA*KOJE*KOJI*KOJO*KOLA*KULO*"}]
["LILO","LXLO",null,{"$f":"D102&Tabla.Palabras.Inconvenientes[[#This Row],[Palabra Inconveniente]]&\"*\"","v":"BACA*BAKA*BUEI*BUEY*CACA*CACO*CAGA*CAGO*CAKA*CAKO*COGE*COGI*COJA*COJE*COJI*COJO*COLA*CULO*FALO*FETO*GETA*GUEI*GUEY*JETA*JOTO*KACA*KACO*KAGA*KAGO*KAKA*KAKO*KOGE*KOGI*KOJA*KOJE*KOJI*KOJO*KOLA*KULO*LILO*"}]
["LOCA","LXCA",null,{"$f":"D103&Tabla.Palabras.Inconvenientes[[#This Row],[Palabra Inconveniente]]&\"*\"","v":"BACA*BAKA*BUEI*BUEY*CACA*CACO*CAGA*CAGO*CAKA*CAKO*COGE*COGI*COJA*COJE*COJI*COJO*COLA*CULO*FALO*FETO*GETA*GUEI*GUEY*JETA*JOTO*KACA*KACO*KAGA*KAGO*KAKA*KAKO*KOGE*KOGI*KOJA*KOJE*KOJI*KOJO*KOLA*KULO*LILO*LOCA*"}]
["LOCO","LXCO",null,{"$f":"D104&Tabla.Palabras.Inconvenientes[[#This Row],[Palabra Inconveniente]]&\"*\"","v":"BACA*BAKA*BUEI*BUEY*CACA*CACO*CAGA*CAGO*CAKA*CAKO*COGE*COGI*COJA*COJE*COJI*COJO*COLA*CULO*FALO*FETO*GETA*GUEI*GUEY*JETA*JOTO*KACA*KACO*KAGA*KAGO*KAKA*KAKO*KOGE*KOGI*KOJA*KOJE*KOJI*KOJO*KOLA*KULO*LILO*LOCA*LOCO*"}]
["LOKA","LXKA",null,{"$f":"D105&Tabla.Palabras.Inconvenientes[[#This Row],[Palabra Inconveniente]]&\"*\"","v":"BACA*BAKA*BUEI*BUEY*CACA*CACO*CAGA*CAGO*CAKA*CAKO*COGE*COGI*COJA*COJE*COJI*COJO*COLA*CULO*FALO*FETO*GETA*GUEI*GUEY*JETA*JOTO*KACA*KACO*KAGA*KAGO*KAKA*KAKO*KOGE*KOGI*KOJA*KOJE*KOJI*KOJO*KOLA*KULO*LILO*LOCA*LOCO*LOKA*"}]
["LOKO","LXKO",null,{"$f":"D106&Tabla.Palabras.Inconvenientes[[#This Row],[Palabra Inconveniente]]&\"*\"","v":"BACA*BAKA*BUEI*BUEY*CACA*CACO*CAGA*CAGO*CAKA*CAKO*COGE*COGI*COJA*COJE*COJI*COJO*COLA*CULO*FALO*FETO*GETA*GUEI*GUEY*JETA*JOTO*KACA*KACO*KAGA*KAGO*KAKA*KAKO*KOGE*KOGI*KOJA*KOJE*KOJI*KOJO*KOLA*KULO*LILO*LOCA*LOCO*LOKA*LOKO*"}]
["MAME","MXME",null,{"$f":"D107&Tabla.Palabras.Inconvenientes[[#This Row],[Palabra Inconveniente]]&\"*\"","v":"BACA*BAKA*BUEI*BUEY*CACA*CACO*CAGA*CAGO*CAKA*CAKO*COGE*COGI*COJA*COJE*COJI*COJO*COLA*CULO*FALO*FETO*GETA*GUEI*GUEY*JETA*JOTO*KACA*KACO*KAGA*KAGO*KAKA*KAKO*KOGE*KOGI*KOJA*KOJE*KOJI*KOJO*KOLA*KULO*LILO*LOCA*LOCO*LOKA*LOKO*MAME*"}]
["MAMO","MXMO",null,{"$f":"D108&Tabla.Palabras.Inconvenientes[[#This Row],[Palabra Inconveniente]]&\"*\"","v":"BACA*BAKA*BUEI*BUEY*CACA*CACO*CAGA*CAGO*CAKA*CAKO*COGE*COGI*COJA*COJE*COJI*COJO*COLA*CULO*FALO*FETO*GETA*GUEI*GUEY*JETA*JOTO*KACA*KACO*KAGA*KAGO*KAKA*KAKO*KOGE*KOGI*KOJA*KOJE*KOJI*KOJO*KOLA*KULO*LILO*LOCA*LOCO*LOKA*LOKO*MAME*MAMO*"}]
["MEAR","MXAR",null,{"$f":"D109&Tabla.Palabras.Inconvenientes[[#This Row],[Palabra Inconveniente]]&\"*\"","v":"BACA*BAKA*BUEI*BUEY*CACA*CACO*CAGA*CAGO*CAKA*CAKO*COGE*COGI*COJA*COJE*COJI*COJO*COLA*CULO*FALO*FETO*GETA*GUEI*GUEY*JETA*JOTO*KACA*KACO*KAGA*KAGO*KAKA*KAKO*KOGE*KOGI*KOJA*KOJE*KOJI*KOJO*KOLA*KULO*LILO*LOCA*LOCO*LOKA*LOKO*MAME*MAMO*MEAR*"}]
["MEAS","MXAS",null,{"$f":"D110&Tabla.Palabras.Inconvenientes[[#This Row],[Palabra Inconveniente]]&\"*\"","v":"BACA*BAKA*BUEI*BUEY*CACA*CACO*CAGA*CAGO*CAKA*CAKO*COGE*COGI*COJA*COJE*COJI*COJO*COLA*CULO*FALO*FETO*GETA*GUEI*GUEY*JETA*JOTO*KACA*KACO*KAGA*KAGO*KAKA*KAKO*KOGE*KOGI*KOJA*KOJE*KOJI*KOJO*KOLA*KULO*LILO*LOCA*LOCO*LOKA*LOKO*MAME*MAMO*MEAR*MEAS*"}]
["MEON","MXON",null,{"$f":"D111&Tabla.Palabras.Inconvenientes[[#This Row],[Palabra Inconveniente]]&\"*\"","v":"BACA*BAKA*BUEI*BUEY*CACA*CACO*CAGA*CAGO*CAKA*CAKO*COGE*COGI*COJA*COJE*COJI*COJO*COLA*CULO*FALO*FETO*GETA*GUEI*GUEY*JETA*JOTO*KACA*KACO*KAGA*KAGO*KAKA*KAKO*KOGE*KOGI*KOJA*KOJE*KOJI*KOJO*KOLA*KULO*LILO*LOCA*LOCO*LOKA*LOKO*MAME*MAMO*MEAR*MEAS*MEON*"}]
["MIAR","MXAR",null,{"$f":"D112&Tabla.Palabras.Inconvenientes[[#This Row],[Palabra Inconveniente]]&\"*\"","v":"BACA*BAKA*BUEI*BUEY*CACA*CACO*CAGA*CAGO*CAKA*CAKO*COGE*COGI*COJA*COJE*COJI*COJO*COLA*CULO*FALO*FETO*GETA*GUEI*GUEY*JETA*JOTO*KACA*KACO*KAGA*KAGO*KAKA*KAKO*KOGE*KOGI*KOJA*KOJE*KOJI*KOJO*KOLA*KULO*LILO*LOCA*LOCO*LOKA*LOKO*MAME*MAMO*MEAR*MEAS*MEON*MIAR*"}]
["MION","MXON",null,{"$f":"D113&Tabla.Palabras.Inconvenientes[[#This Row],[Palabra Inconveniente]]&\"*\"","v":"BACA*BAKA*BUEI*BUEY*CACA*CACO*CAGA*CAGO*CAKA*CAKO*COGE*COGI*COJA*COJE*COJI*COJO*COLA*CULO*FALO*FETO*GETA*GUEI*GUEY*JETA*JOTO*KACA*KACO*KAGA*KAGO*KAKA*KAKO*KOGE*KOGI*KOJA*KOJE*KOJI*KOJO*KOLA*KULO*LILO*LOCA*LOCO*LOKA*LOKO*MAME*MAMO*MEAR*MEAS*MEON*MIAR*MION*"}]
["MOCO","MXCO",null,{"$f":"D114&Tabla.Palabras.Inconvenientes[[#This Row],[Palabra Inconveniente]]&\"*\"","v":"BACA*BAKA*BUEI*BUEY*CACA*CACO*CAGA*CAGO*CAKA*CAKO*COGE*COGI*COJA*COJE*COJI*COJO*COLA*CULO*FALO*FETO*GETA*GUEI*GUEY*JETA*JOTO*KACA*KACO*KAGA*KAGO*KAKA*KAKO*KOGE*KOGI*KOJA*KOJE*KOJI*KOJO*KOLA*KULO*LILO*LOCA*LOCO*LOKA*LOKO*MAME*MAMO*MEAR*MEAS*MEON*MIAR*MION*MOCO*"}]
["MOKO","MXKO",null,{"$f":"D115&Tabla.Palabras.Inconvenientes[[#This Row],[Palabra Inconveniente]]&\"*\"","v":"BACA*BAKA*BUEI*BUEY*CACA*CACO*CAGA*CAGO*CAKA*CAKO*COGE*COGI*COJA*COJE*COJI*COJO*COLA*CULO*FALO*FETO*GETA*GUEI*GUEY*JETA*JOTO*KACA*KACO*KAGA*KAGO*KAKA*KAKO*KOGE*KOGI*KOJA*KOJE*KOJI*KOJO*KOLA*KULO*LILO*LOCA*LOCO*LOKA*LOKO*MAME*MAMO*MEAR*MEAS*MEON*MIAR*MION*MOCO*MOKO*"}]
["MULA","MXLA",null,{"$f":"D116&Tabla.Palabras.Inconvenientes[[#This Row],[Palabra Inconveniente]]&\"*\"","v":"BACA*BAKA*BUEI*BUEY*CACA*CACO*CAGA*CAGO*CAKA*CAKO*COGE*COGI*COJA*COJE*COJI*COJO*COLA*CULO*FALO*FETO*GETA*GUEI*GUEY*JETA*JOTO*KACA*KACO*KAGA*KAGO*KAKA*KAKO*KOGE*KOGI*KOJA*KOJE*KOJI*KOJO*KOLA*KULO*LILO*LOCA*LOCO*LOKA*LOKO*MAME*MAMO*MEAR*MEAS*MEON*MIAR*MION*MOCO*MOKO*MULA*"}]
["MULO","MXLO",null,{"$f":"D117&Tabla.Palabras.Inconvenientes[[#This Row],[Palabra Inconveniente]]&\"*\"","v":"BACA*BAKA*BUEI*BUEY*CACA*CACO*CAGA*CAGO*CAKA*CAKO*COGE*COGI*COJA*COJE*COJI*COJO*COLA*CULO*FALO*FETO*GETA*GUEI*GUEY*JETA*JOTO*KACA*KACO*KAGA*KAGO*KAKA*KAKO*KOGE*KOGI*KOJA*KOJE*KOJI*KOJO*KOLA*KULO*LILO*LOCA*LOCO*LOKA*LOKO*MAME*MAMO*MEAR*MEAS*MEON*MIAR*MION*MOCO*MOKO*MULA*MULO*"}]
["NACA","NXCA",null,{"$f":"D118&Tabla.Palabras.Inconvenientes[[#This Row],[Palabra Inconveniente]]&\"*\"","v":"BACA*BAKA*BUEI*BUEY*CACA*CACO*CAGA*CAGO*CAKA*CAKO*COGE*COGI*COJA*COJE*COJI*COJO*COLA*CULO*FALO*FETO*GETA*GUEI*GUEY*JETA*JOTO*KACA*KACO*KAGA*KAGO*KAKA*KAKO*KOGE*KOGI*KOJA*KOJE*KOJI*KOJO*KOLA*KULO*LILO*LOCA*LOCO*LOKA*LOKO*MAME*MAMO*MEAR*MEAS*MEON*MIAR*MION*MOCO*MOKO*MULA*MULO*NACA*"}]
["NACO","NXCO",null,{"$f":"D119&Tabla.Palabras.Inconvenientes[[#This Row],[Palabra Inconveniente]]&\"*\"","v":"BACA*BAKA*BUEI*BUEY*CACA*CACO*CAGA*CAGO*CAKA*CAKO*COGE*COGI*COJA*COJE*COJI*COJO*COLA*CULO*FALO*FETO*GETA*GUEI*GUEY*JETA*JOTO*KACA*KACO*KAGA*KAGO*KAKA*KAKO*KOGE*KOGI*KOJA*KOJE*KOJI*KOJO*KOLA*KULO*LILO*LOCA*LOCO*LOKA*LOKO*MAME*MAMO*MEAR*MEAS*MEON*MIAR*MION*MOCO*MOKO*MULA*MULO*NACA*NACO*"}]
["PEDA","PXDA",null,{"$f":"D120&Tabla.Palabras.Inconvenientes[[#This Row],[Palabra Inconveniente]]&\"*\"","v":"BACA*BAKA*BUEI*BUEY*CACA*CACO*CAGA*CAGO*CAKA*CAKO*COGE*COGI*COJA*COJE*COJI*COJO*COLA*CULO*FALO*FETO*GETA*GUEI*GUEY*JETA*JOTO*KACA*KACO*KAGA*KAGO*KAKA*KAKO*KOGE*KOGI*KOJA*KOJE*KOJI*KOJO*KOLA*KULO*LILO*LOCA*LOCO*LOKA*LOKO*MAME*MAMO*MEAR*MEAS*MEON*MIAR*MION*MOCO*MOKO*MULA*MULO*NACA*NACO*PEDA*"}]
["PEDO","PXDO",null,{"$f":"D121&Tabla.Palabras.Inconvenientes[[#This Row],[Palabra Inconveniente]]&\"*\"","v":"BACA*BAKA*BUEI*BUEY*CACA*CACO*CAGA*CAGO*CAKA*CAKO*COGE*COGI*COJA*COJE*COJI*COJO*COLA*CULO*FALO*FETO*GETA*GUEI*GUEY*JETA*JOTO*KACA*KACO*KAGA*KAGO*KAKA*KAKO*KOGE*KOGI*KOJA*KOJE*KOJI*KOJO*KOLA*KULO*LILO*LOCA*LOCO*LOKA*LOKO*MAME*MAMO*MEAR*MEAS*MEON*MIAR*MION*MOCO*MOKO*MULA*MULO*NACA*NACO*PEDA*PEDO*"}]
["PENE","PXNE",null,{"$f":"D122&Tabla.Palabras.Inconvenientes[[#This Row],[Palabra Inconveniente]]&\"*\"","v":"BACA*BAKA*BUEI*BUEY*CACA*CACO*CAGA*CAGO*CAKA*CAKO*COGE*COGI*COJA*COJE*COJI*COJO*COLA*CULO*FALO*FETO*GETA*GUEI*GUEY*JETA*JOTO*KACA*KACO*KAGA*KAGO*KAKA*KAKO*KOGE*KOGI*KOJA*KOJE*KOJI*KOJO*KOLA*KULO*LILO*LOCA*LOCO*LOKA*LOKO*MAME*MAMO*MEAR*MEAS*MEON*MIAR*MION*MOCO*MOKO*MULA*MULO*NACA*NACO*PEDA*PEDO*PENE*"}]
["PIPI","PXPI",null,{"$f":"D123&Tabla.Palabras.Inconvenientes[[#This Row],[Palabra Inconveniente]]&\"*\"","v":"BACA*BAKA*BUEI*BUEY*CACA*CACO*CAGA*CAGO*CAKA*CAKO*COGE*COGI*COJA*COJE*COJI*COJO*COLA*CULO*FALO*FETO*GETA*GUEI*GUEY*JETA*JOTO*KACA*KACO*KAGA*KAGO*KAKA*KAKO*KOGE*KOGI*KOJA*KOJE*KOJI*KOJO*KOLA*KULO*LILO*LOCA*LOCO*LOKA*LOKO*MAME*MAMO*MEAR*MEAS*MEON*MIAR*MION*MOCO*MOKO*MULA*MULO*NACA*NACO*PEDA*PEDO*PENE*PIPI*"}]
["PITO","PXTO",null,{"$f":"D124&Tabla.Palabras.Inconvenientes[[#This Row],[Palabra Inconveniente]]&\"*\"","v":"BACA*BAKA*BUEI*BUEY*CACA*CACO*CAGA*CAGO*CAKA*CAKO*COGE*COGI*COJA*COJE*COJI*COJO*COLA*CULO*FALO*FETO*GETA*GUEI*GUEY*JETA*JOTO*KACA*KACO*KAGA*KAGO*KAKA*KAKO*KOGE*KOGI*KOJA*KOJE*KOJI*KOJO*KOLA*KULO*LILO*LOCA*LOCO*LOKA*LOKO*MAME*MAMO*MEAR*MEAS*MEON*MIAR*MION*MOCO*MOKO*MULA*MULO*NACA*NACO*PEDA*PEDO*PENE*PIPI*PITO*"}]
["POPO","PXPO",null,{"$f":"D125&Tabla.Palabras.Inconvenientes[[#This Row],[Palabra Inconveniente]]&\"*\"","v":"BACA*BAKA*BUEI*BUEY*CACA*CACO*CAGA*CAGO*CAKA*CAKO*COGE*COGI*COJA*COJE*COJI*COJO*COLA*CULO*FALO*FETO*GETA*GUEI*GUEY*JETA*JOTO*KACA*KACO*KAGA*KAGO*KAKA*KAKO*KOGE*KOGI*KOJA*KOJE*KOJI*KOJO*KOLA*KULO*LILO*LOCA*LOCO*LOKA*LOKO*MAME*MAMO*MEAR*MEAS*MEON*MIAR*MION*MOCO*MOKO*MULA*MULO*NACA*NACO*PEDA*PEDO*PENE*PIPI*PITO*POPO*"}]
["PUTA","PXTA",null,{"$f":"D126&Tabla.Palabras.Inconvenientes[[#This Row],[Palabra Inconveniente]]&\"*\"","v":"BACA*BAKA*BUEI*BUEY*CACA*CACO*CAGA*CAGO*CAKA*CAKO*COGE*COGI*COJA*COJE*COJI*COJO*COLA*CULO*FALO*FETO*GETA*GUEI*GUEY*JETA*JOTO*KACA*KACO*KAGA*KAGO*KAKA*KAKO*KOGE*KOGI*KOJA*KOJE*KOJI*KOJO*KOLA*KULO*LILO*LOCA*LOCO*LOKA*LOKO*MAME*MAMO*MEAR*MEAS*MEON*MIAR*MION*MOCO*MOKO*MULA*MULO*NACA*NACO*PEDA*PEDO*PENE*PIPI*PITO*POPO*PUTA*"}]
["PUTO","PXTO",null,{"$f":"D127&Tabla.Palabras.Inconvenientes[[#This Row],[Palabra Inconveniente]]&\"*\"","v":"BACA*BAKA*BUEI*BUEY*CACA*CACO*CAGA*CAGO*CAKA*CAKO*COGE*COGI*COJA*COJE*COJI*COJO*COLA*CULO*FALO*FETO*GETA*GUEI*GUEY*JETA*JOTO*KACA*KACO*KAGA*KAGO*KAKA*KAKO*KOGE*KOGI*KOJA*KOJE*KOJI*KOJO*KOLA*KULO*LILO*LOCA*LOCO*LOKA*LOKO*MAME*MAMO*MEAR*MEAS*MEON*MIAR*MION*MOCO*MOKO*MULA*MULO*NACA*NACO*PEDA*PEDO*PENE*PIPI*PITO*POPO*PUTA*PUTO*"}]
["QULO","QXLO",null,{"$f":"D128&Tabla.Palabras.Inconvenientes[[#This Row],[Palabra Inconveniente]]&\"*\"","v":"BACA*BAKA*BUEI*BUEY*CACA*CACO*CAGA*CAGO*CAKA*CAKO*COGE*COGI*COJA*COJE*COJI*COJO*COLA*CULO*FALO*FETO*GETA*GUEI*GUEY*JETA*JOTO*KACA*KACO*KAGA*KAGO*KAKA*KAKO*KOGE*KOGI*KOJA*KOJE*KOJI*KOJO*KOLA*KULO*LILO*LOCA*LOCO*LOKA*LOKO*MAME*MAMO*MEAR*MEAS*MEON*MIAR*MION*MOCO*MOKO*MULA*MULO*NACA*NACO*PEDA*PEDO*PENE*PIPI*PITO*POPO*PUTA*PUTO*QULO*"}]
["RATA","RXTA",null,{"$f":"D129&Tabla.Palabras.Inconvenientes[[#This Row],[Palabra Inconveniente]]&\"*\"","v":"BACA*BAKA*BUEI*BUEY*CACA*CACO*CAGA*CAGO*CAKA*CAKO*COGE*COGI*COJA*COJE*COJI*COJO*COLA*CULO*FALO*FETO*GETA*GUEI*GUEY*JETA*JOTO*KACA*KACO*KAGA*KAGO*KAKA*KAKO*KOGE*KOGI*KOJA*KOJE*KOJI*KOJO*KOLA*KULO*LILO*LOCA*LOCO*LOKA*LOKO*MAME*MAMO*MEAR*MEAS*MEON*MIAR*MION*MOCO*MOKO*MULA*MULO*NACA*NACO*PEDA*PEDO*PENE*PIPI*PITO*POPO*PUTA*PUTO*QULO*RATA*"}]
["ROBA","RXBA",null,{"$f":"D130&Tabla.Palabras.Inconvenientes[[#This Row],[Palabra Inconveniente]]&\"*\"","v":"BACA*BAKA*BUEI*BUEY*CACA*CACO*CAGA*CAGO*CAKA*CAKO*COGE*COGI*COJA*COJE*COJI*COJO*COLA*CULO*FALO*FETO*GETA*GUEI*GUEY*JETA*JOTO*KACA*KACO*KAGA*KAGO*KAKA*KAKO*KOGE*KOGI*KOJA*KOJE*KOJI*KOJO*KOLA*KULO*LILO*LOCA*LOCO*LOKA*LOKO*MAME*MAMO*MEAR*MEAS*MEON*MIAR*MION*MOCO*MOKO*MULA*MULO*NACA*NACO*PEDA*PEDO*PENE*PIPI*PITO*POPO*PUTA*PUTO*QULO*RATA*ROBA*"}]
["ROBE","RXBE",null,{"$f":"D131&Tabla.Palabras.Inconvenientes[[#This Row],[Palabra Inconveniente]]&\"*\"","v":"BACA*BAKA*BUEI*BUEY*CACA*CACO*CAGA*CAGO*CAKA*CAKO*COGE*COGI*COJA*COJE*COJI*COJO*COLA*CULO*FALO*FETO*GETA*GUEI*GUEY*JETA*JOTO*KACA*KACO*KAGA*KAGO*KAKA*KAKO*KOGE*KOGI*KOJA*KOJE*KOJI*KOJO*KOLA*KULO*LILO*LOCA*LOCO*LOKA*LOKO*MAME*MAMO*MEAR*MEAS*MEON*MIAR*MION*MOCO*MOKO*MULA*MULO*NACA*NACO*PEDA*PEDO*PENE*PIPI*PITO*POPO*PUTA*PUTO*QULO*RATA*ROBA*ROBE*"}]
["ROBO","RXBO",null,{"$f":"D132&Tabla.Palabras.Inconvenientes[[#This Row],[Palabra Inconveniente]]&\"*\"","v":"BACA*BAKA*BUEI*BUEY*CACA*CACO*CAGA*CAGO*CAKA*CAKO*COGE*COGI*COJA*COJE*COJI*COJO*COLA*CULO*FALO*FETO*GETA*GUEI*GUEY*JETA*JOTO*KACA*KACO*KAGA*KAGO*KAKA*KAKO*KOGE*KOGI*KOJA*KOJE*KOJI*KOJO*KOLA*KULO*LILO*LOCA*LOCO*LOKA*LOKO*MAME*MAMO*MEAR*MEAS*MEON*MIAR*MION*MOCO*MOKO*MULA*MULO*NACA*NACO*PEDA*PEDO*PENE*PIPI*PITO*POPO*PUTA*PUTO*QULO*RATA*ROBA*ROBE*ROBO*"}]
["RUIN","RXIN",null,{"$f":"D133&Tabla.Palabras.Inconvenientes[[#This Row],[Palabra Inconveniente]]&\"*\"","v":"BACA*BAKA*BUEI*BUEY*CACA*CACO*CAGA*CAGO*CAKA*CAKO*COGE*COGI*COJA*COJE*COJI*COJO*COLA*CULO*FALO*FETO*GETA*GUEI*GUEY*JETA*JOTO*KACA*KACO*KAGA*KAGO*KAKA*KAKO*KOGE*KOGI*KOJA*KOJE*KOJI*KOJO*KOLA*KULO*LILO*LOCA*LOCO*LOKA*LOKO*MAME*MAMO*MEAR*MEAS*MEON*MIAR*MION*MOCO*MOKO*MULA*MULO*NACA*NACO*PEDA*PEDO*PENE*PIPI*PITO*POPO*PUTA*PUTO*QULO*RATA*ROBA*ROBE*ROBO*RUIN*"}]
["SENO","SXNO",null,{"$f":"D134&Tabla.Palabras.Inconvenientes[[#This Row],[Palabra Inconveniente]]&\"*\"","v":"BACA*BAKA*BUEI*BUEY*CACA*CACO*CAGA*CAGO*CAKA*CAKO*COGE*COGI*COJA*COJE*COJI*COJO*COLA*CULO*FALO*FETO*GETA*GUEI*GUEY*JETA*JOTO*KACA*KACO*KAGA*KAGO*KAKA*KAKO*KOGE*KOGI*KOJA*KOJE*KOJI*KOJO*KOLA*KULO*LILO*LOCA*LOCO*LOKA*LOKO*MAME*MAMO*MEAR*MEAS*MEON*MIAR*MION*MOCO*MOKO*MULA*MULO*NACA*NACO*PEDA*PEDO*PENE*PIPI*PITO*POPO*PUTA*PUTO*QULO*RATA*ROBA*ROBE*ROBO*RUIN*SENO*"}]
["TETA","TXTA",null,{"$f":"D135&Tabla.Palabras.Inconvenientes[[#This Row],[Palabra Inconveniente]]&\"*\"","v":"BACA*BAKA*BUEI*BUEY*CACA*CACO*CAGA*CAGO*CAKA*CAKO*COGE*COGI*COJA*COJE*COJI*COJO*COLA*CULO*FALO*FETO*GETA*GUEI*GUEY*JETA*JOTO*KACA*KACO*KAGA*KAGO*KAKA*KAKO*KOGE*KOGI*KOJA*KOJE*KOJI*KOJO*KOLA*KULO*LILO*LOCA*LOCO*LOKA*LOKO*MAME*MAMO*MEAR*MEAS*MEON*MIAR*MION*MOCO*MOKO*MULA*MULO*NACA*NACO*PEDA*PEDO*PENE*PIPI*PITO*POPO*PUTA*PUTO*QULO*RATA*ROBA*ROBE*ROBO*RUIN*SENO*TETA*"}]
["VACA","VXCA",null,{"$f":"D136&Tabla.Palabras.Inconvenientes[[#This Row],[Palabra Inconveniente]]&\"*\"","v":"BACA*BAKA*BUEI*BUEY*CACA*CACO*CAGA*CAGO*CAKA*CAKO*COGE*COGI*COJA*COJE*COJI*COJO*COLA*CULO*FALO*FETO*GETA*GUEI*GUEY*JETA*JOTO*KACA*KACO*KAGA*KAGO*KAKA*KAKO*KOGE*KOGI*KOJA*KOJE*KOJI*KOJO*KOLA*KULO*LILO*LOCA*LOCO*LOKA*LOKO*MAME*MAMO*MEAR*MEAS*MEON*MIAR*MION*MOCO*MOKO*MULA*MULO*NACA*NACO*PEDA*PEDO*PENE*PIPI*PITO*POPO*PUTA*PUTO*QULO*RATA*ROBA*ROBE*ROBO*RUIN*SENO*TETA*VACA*"}]
["VAGA","VXGA",null,{"$f":"D137&Tabla.Palabras.Inconvenientes[[#This Row],[Palabra Inconveniente]]&\"*\"","v":"BACA*BAKA*BUEI*BUEY*CACA*CACO*CAGA*CAGO*CAKA*CAKO*COGE*COGI*COJA*COJE*COJI*COJO*COLA*CULO*FALO*FETO*GETA*GUEI*GUEY*JETA*JOTO*KACA*KACO*KAGA*KAGO*KAKA*KAKO*KOGE*KOGI*KOJA*KOJE*KOJI*KOJO*KOLA*KULO*LILO*LOCA*LOCO*LOKA*LOKO*MAME*MAMO*MEAR*MEAS*MEON*MIAR*MION*MOCO*MOKO*MULA*MULO*NACA*NACO*PEDA*PEDO*PENE*PIPI*PITO*POPO*PUTA*PUTO*QULO*RATA*ROBA*ROBE*ROBO*RUIN*SENO*TETA*VACA*VAGA*"}]
["VAGO","VXGO",null,{"$f":"D138&Tabla.Palabras.Inconvenientes[[#This Row],[Palabra Inconveniente]]&\"*\"","v":"BACA*BAKA*BUEI*BUEY*CACA*CACO*CAGA*CAGO*CAKA*CAKO*COGE*COGI*COJA*COJE*COJI*COJO*COLA*CULO*FALO*FETO*GETA*GUEI*GUEY*JETA*JOTO*KACA*KACO*KAGA*KAGO*KAKA*KAKO*KOGE*KOGI*KOJA*KOJE*KOJI*KOJO*KOLA*KULO*LILO*LOCA*LOCO*LOKA*LOKO*MAME*MAMO*MEAR*MEAS*MEON*MIAR*MION*MOCO*MOKO*MULA*MULO*NACA*NACO*PEDA*PEDO*PENE*PIPI*PITO*POPO*PUTA*PUTO*QULO*RATA*ROBA*ROBE*ROBO*RUIN*SENO*TETA*VACA*VAGA*VAGO*"}]
["VAKA","VXKA",null,{"$f":"D139&Tabla.Palabras.Inconvenientes[[#This Row],[Palabra Inconveniente]]&\"*\"","v":"BACA*BAKA*BUEI*BUEY*CACA*CACO*CAGA*CAGO*CAKA*CAKO*COGE*COGI*COJA*COJE*COJI*COJO*COLA*CULO*FALO*FETO*GETA*GUEI*GUEY*JETA*JOTO*KACA*KACO*KAGA*KAGO*KAKA*KAKO*KOGE*KOGI*KOJA*KOJE*KOJI*KOJO*KOLA*KULO*LILO*LOCA*LOCO*LOKA*LOKO*MAME*MAMO*MEAR*MEAS*MEON*MIAR*MION*MOCO*MOKO*MULA*MULO*NACA*NACO*PEDA*PEDO*PENE*PIPI*PITO*POPO*PUTA*PUTO*QULO*RATA*ROBA*ROBE*ROBO*RUIN*SENO*TETA*VACA*VAGA*VAGO*VAKA*"}]
["VUEI","VXEI",null,{"$f":"D140&Tabla.Palabras.Inconvenientes[[#This Row],[Palabra Inconveniente]]&\"*\"","v":"BACA*BAKA*BUEI*BUEY*CACA*CACO*CAGA*CAGO*CAKA*CAKO*COGE*COGI*COJA*COJE*COJI*COJO*COLA*CULO*FALO*FETO*GETA*GUEI*GUEY*JETA*JOTO*KACA*KACO*KAGA*KAGO*KAKA*KAKO*KOGE*KOGI*KOJA*KOJE*KOJI*KOJO*KOLA*KULO*LILO*LOCA*LOCO*LOKA*LOKO*MAME*MAMO*MEAR*MEAS*MEON*MIAR*MION*MOCO*MOKO*MULA*MULO*NACA*NACO*PEDA*PEDO*PENE*PIPI*PITO*POPO*PUTA*PUTO*QULO*RATA*ROBA*ROBE*ROBO*RUIN*SENO*TETA*VACA*VAGA*VAGO*VAKA*VUEI*"}]
["VUEY","VXEY",null,{"$f":"D141&Tabla.Palabras.Inconvenientes[[#This Row],[Palabra Inconveniente]]&\"*\"","v":"BACA*BAKA*BUEI*BUEY*CACA*CACO*CAGA*CAGO*CAKA*CAKO*COGE*COGI*COJA*COJE*COJI*COJO*COLA*CULO*FALO*FETO*GETA*GUEI*GUEY*JETA*JOTO*KACA*KACO*KAGA*KAGO*KAKA*KAKO*KOGE*KOGI*KOJA*KOJE*KOJI*KOJO*KOLA*KULO*LILO*LOCA*LOCO*LOKA*LOKO*MAME*MAMO*MEAR*MEAS*MEON*MIAR*MION*MOCO*MOKO*MULA*MULO*NACA*NACO*PEDA*PEDO*PENE*PIPI*PITO*POPO*PUTA*PUTO*QULO*RATA*ROBA*ROBE*ROBO*RUIN*SENO*TETA*VACA*VAGA*VAGO*VAKA*VUEI*VUEY*"}]
["WUEI","WXEI",null,{"$f":"D142&Tabla.Palabras.Inconvenientes[[#This Row],[Palabra Inconveniente]]&\"*\"","v":"BACA*BAKA*BUEI*BUEY*CACA*CACO*CAGA*CAGO*CAKA*CAKO*COGE*COGI*COJA*COJE*COJI*COJO*COLA*CULO*FALO*FETO*GETA*GUEI*GUEY*JETA*JOTO*KACA*KACO*KAGA*KAGO*KAKA*KAKO*KOGE*KOGI*KOJA*KOJE*KOJI*KOJO*KOLA*KULO*LILO*LOCA*LOCO*LOKA*LOKO*MAME*MAMO*MEAR*MEAS*MEON*MIAR*MION*MOCO*MOKO*MULA*MULO*NACA*NACO*PEDA*PEDO*PENE*PIPI*PITO*POPO*PUTA*PUTO*QULO*RATA*ROBA*ROBE*ROBO*RUIN*SENO*TETA*VACA*VAGA*VAGO*VAKA*VUEI*VUEY*WUEI*"}]
["WUEY","WXEY",null,{"$f":"D143&Tabla.Palabras.Inconvenientes[[#This Row],[Palabra Inconveniente]]&\"*\"","v":"BACA*BAKA*BUEI*BUEY*CACA*CACO*CAGA*CAGO*CAKA*CAKO*COGE*COGI*COJA*COJE*COJI*COJO*COLA*CULO*FALO*FETO*GETA*GUEI*GUEY*JETA*JOTO*KACA*KACO*KAGA*KAGO*KAKA*KAKO*KOGE*KOGI*KOJA*KOJE*KOJI*KOJO*KOLA*KULO*LILO*LOCA*LOCO*LOKA*LOKO*MAME*MAMO*MEAR*MEAS*MEON*MIAR*MION*MOCO*MOKO*MULA*MULO*NACA*NACO*PEDA*PEDO*PENE*PIPI*PITO*POPO*PUTA*PUTO*QULO*RATA*ROBA*ROBE*ROBO*RUIN*SENO*TETA*VACA*VAGA*VAGO*VAKA*VUEI*VUEY*WUEI*WUEY*"}]
[{"$f":"SUBTOTAL(103,Tabla.Palabras.Inconvenientes[Palabra Inconveniente])","v":81},null,null,{"$f":"D144","v":"BACA*BAKA*BUEI*BUEY*CACA*CACO*CAGA*CAGO*CAKA*CAKO*COGE*COGI*COJA*COJE*COJI*COJO*COLA*CULO*FALO*FETO*GETA*GUEI*GUEY*JETA*JOTO*KACA*KACO*KAGA*KAGO*KAKA*KAKO*KOGE*KOGI*KOJA*KOJE*KOJI*KOJO*KOLA*KULO*LILO*LOCA*LOCO*LOKA*LOKO*MAME*MAMO*MEAR*MEAS*MEON*MIAR*MION*MOCO*MOKO*MULA*MULO*NACA*NACO*PEDA*PEDO*PENE*PIPI*PITO*POPO*PUTA*PUTO*QULO*RATA*ROBA*ROBE*ROBO*RUIN*SENO*TETA*VACA*VAGA*VAGO*VAKA*VUEI*VUEY*WUEI*WUEY*"}]
[]
["Tabla Estados CURP"]
["EDO","Estado","Edo.CURP","Concatenado CURP","Concatenado EDOs"]
["AGS","AGUASCALIENTES","AS",{"$f":"Tabla.EDO.CURP[[#This Row],[Edo.CURP]]&\"*\"","v":"AS*"},{"$f":"Tabla.EDO.CURP[[#This Row],[EDO]]&\"*\"","v":"AGS*"}]
["BCN","BAJA CALIFORNIA","BC",{"$f":"D149&Tabla.EDO.CURP[[#This Row],[Edo.CURP]]&\"*\"","v":"AS*BC*"},{"$f":"E149&Tabla.EDO.CURP[[#This Row],[EDO]]&\"*\"","v":"AGS*BCN*"}]
["BCS","BAJA CALIFORNIA SUR","BS",{"$f":"D150&Tabla.EDO.CURP[[#This Row],[Edo.CURP]]&\"*\"","v":"AS*BC*BS*"},{"$f":"E150&Tabla.EDO.CURP[[#This Row],[EDO]]&\"*\"","v":"AGS*BCN*BCS*"}]
["CAM","CAMPECHE","CC",{"$f":"D151&Tabla.EDO.CURP[[#This Row],[Edo.CURP]]&\"*\"","v":"AS*BC*BS*CC*"},{"$f":"E151&Tabla.EDO.CURP[[#This Row],[EDO]]&\"*\"","v":"AGS*BCN*BCS*CAM*"}]
["COA","COAHUILA","CL",{"$f":"D152&Tabla.EDO.CURP[[#This Row],[Edo.CURP]]&\"*\"","v":"AS*BC*BS*CC*CL*"},{"$f":"E152&Tabla.EDO.CURP[[#This Row],[EDO]]&\"*\"","v":"AGS*BCN*BCS*CAM*COA*"}]
["COL","COLIMA","CM",{"$f":"D153&Tabla.EDO.CURP[[#This Row],[Edo.CURP]]&\"*\"","v":"AS*BC*BS*CC*CL*CM*"},{"$f":"E153&Tabla.EDO.CURP[[#This Row],[EDO]]&\"*\"","v":"AGS*BCN*BCS*CAM*COA*COL*"}]
["CHS","CHIAPAS","CS",{"$f":"D154&Tabla.EDO.CURP[[#This Row],[Edo.CURP]]&\"*\"","v":"AS*BC*BS*CC*CL*CM*CS*"},{"$f":"E154&Tabla.EDO.CURP[[#This Row],[EDO]]&\"*\"","v":"AGS*BCN*BCS*CAM*COA*COL*CHS*"}]
["CHI","CHIHUAHUA","CH",{"$f":"D155&Tabla.EDO.CURP[[#This Row],[Edo.CURP]]&\"*\"","v":"AS*BC*BS*CC*CL*CM*CS*CH*"},{"$f":"E155&Tabla.EDO.CURP[[#This Row],[EDO]]&\"*\"","v":"AGS*BCN*BCS*CAM*COA*COL*CHS*CHI*"}]
["DF","DISTRITO FEDERAL","DF",{"$f":"D156&Tabla.EDO.CURP[[#This Row],[Edo.CURP]]&\"*\"","v":"AS*BC*BS*CC*CL*CM*CS*CH*DF*"},{"$f":"E156&Tabla.EDO.CURP[[#This Row],[EDO]]&\"*\"","v":"AGS*BCN*BCS*CAM*COA*COL*CHS*CHI*DF*"}]
["DGO","DURANGO","DG",{"$f":"D157&Tabla.EDO.CURP[[#This Row],[Edo.CURP]]&\"*\"","v":"AS*BC*BS*CC*CL*CM*CS*CH*DF*DG*"},{"$f":"E157&Tabla.EDO.CURP[[#This Row],[EDO]]&\"*\"","v":"AGS*BCN*BCS*CAM*COA*COL*CHS*CHI*DF*DGO*"}]
["GTO","GUANAJUATO","GT",{"$f":"D158&Tabla.EDO.CURP[[#This Row],[Edo.CURP]]&\"*\"","v":"AS*BC*BS*CC*CL*CM*CS*CH*DF*DG*GT*"},{"$f":"E158&Tabla.EDO.CURP[[#This Row],[EDO]]&\"*\"","v":"AGS*BCN*BCS*CAM*COA*COL*CHS*CHI*DF*DGO*GTO*"}]
["GRO","GUERRERO","GR",{"$f":"D159&Tabla.EDO.CURP[[#This Row],[Edo.CURP]]&\"*\"","v":"AS*BC*BS*CC*CL*CM*CS*CH*DF*DG*GT*GR*"},{"$f":"E159&Tabla.EDO.CURP[[#This Row],[EDO]]&\"*\"","v":"AGS*BCN*BCS*CAM*COA*COL*CHS*CHI*DF*DGO*GTO*GRO*"}]
["HGO","HIDALGO","HG",{"$f":"D160&Tabla.EDO.CURP[[#This Row],[Edo.CURP]]&\"*\"","v":"AS*BC*BS*CC*CL*CM*CS*CH*DF*DG*GT*GR*HG*"},{"$f":"E160&Tabla.EDO.CURP[[#This Row],[EDO]]&\"*\"","v":"AGS*BCN*BCS*CAM*COA*COL*CHS*CHI*DF*DGO*GTO*GRO*HGO*"}]
["JAL","JALISCO","JC",{"$f":"D161&Tabla.EDO.CURP[[#This Row],[Edo.CURP]]&\"*\"","v":"AS*BC*BS*CC*CL*CM*CS*CH*DF*DG*GT*GR*HG*JC*"},{"$f":"E161&Tabla.EDO.CURP[[#This Row],[EDO]]&\"*\"","v":"AGS*BCN*BCS*CAM*COA*COL*CHS*CHI*DF*DGO*GTO*GRO*HGO*JAL*"}]
["MX","MÉXICO","MC",{"$f":"D162&Tabla.EDO.CURP[[#This Row],[Edo.CURP]]&\"*\"","v":"AS*BC*BS*CC*CL*CM*CS*CH*DF*DG*GT*GR*HG*JC*MC*"},{"$f":"E162&Tabla.EDO.CURP[[#This Row],[EDO]]&\"*\"","v":"AGS*BCN*BCS*CAM*COA*COL*CHS*CHI*DF*DGO*GTO*GRO*HGO*JAL*MX*"}]
["MIC","MICHOACÁN","MN",{"$f":"D163&Tabla.EDO.CURP[[#This Row],[Edo.CURP]]&\"*\"","v":"AS*BC*BS*CC*CL*CM*CS*CH*DF*DG*GT*GR*HG*JC*MC*MN*"},{"$f":"E163&Tabla.EDO.CURP[[#This Row],[EDO]]&\"*\"","v":"AGS*BCN*BCS*CAM*COA*COL*CHS*CHI*DF*DGO*GTO*GRO*HGO*JAL*MX*MIC*"}]
["MOR","MORELOS","MS",{"$f":"D164&Tabla.EDO.CURP[[#This Row],[Edo.CURP]]&\"*\"","v":"AS*BC*BS*CC*CL*CM*CS*CH*DF*DG*GT*GR*HG*JC*MC*MN*MS*"},{"$f":"E164&Tabla.EDO.CURP[[#This Row],[EDO]]&\"*\"","v":"AGS*BCN*BCS*CAM*COA*COL*CHS*CHI*DF*DGO*GTO*GRO*HGO*JAL*MX*MIC*MOR*"}]
["NAY","NAYARIT","NT",{"$f":"D165&Tabla.EDO.CURP[[#This Row],[Edo.CURP]]&\"*\"","v":"AS*BC*BS*CC*CL*CM*CS*CH*DF*DG*GT*GR*HG*JC*MC*MN*MS*NT*"},{"$f":"E165&Tabla.EDO.CURP[[#This Row],[EDO]]&\"*\"","v":"AGS*BCN*BCS*CAM*COA*COL*CHS*CHI*DF*DGO*GTO*GRO*HGO*JAL*MX*MIC*MOR*NAY*"}]
["NL","NUEVO LEÓN","NL",{"$f":"D166&Tabla.EDO.CURP[[#This Row],[Edo.CURP]]&\"*\"","v":"AS*BC*BS*CC*CL*CM*CS*CH*DF*DG*GT*GR*HG*JC*MC*MN*MS*NT*NL*"},{"$f":"E166&Tabla.EDO.CURP[[#This Row],[EDO]]&\"*\"","v":"AGS*BCN*BCS*CAM*COA*COL*CHS*CHI*DF*DGO*GTO*GRO*HGO*JAL*MX*MIC*MOR*NAY*NL*"}]
["OAX","OAXACA","OC",{"$f":"D167&Tabla.EDO.CURP[[#This Row],[Edo.CURP]]&\"*\"","v":"AS*BC*BS*CC*CL*CM*CS*CH*DF*DG*GT*GR*HG*JC*MC*MN*MS*NT*NL*OC*"},{"$f":"E167&Tabla.EDO.CURP[[#This Row],[EDO]]&\"*\"","v":"AGS*BCN*BCS*CAM*COA*COL*CHS*CHI*DF*DGO*GTO*GRO*HGO*JAL*MX*MIC*MOR*NAY*NL*OAX*"}]
["PUE","PUEBLA","PL",{"$f":"D168&Tabla.EDO.CURP[[#This Row],[Edo.CURP]]&\"*\"","v":"AS*BC*BS*CC*CL*CM*CS*CH*DF*DG*GT*GR*HG*JC*MC*MN*MS*NT*NL*OC*PL*"},{"$f":"E168&Tabla.EDO.CURP[[#This Row],[EDO]]&\"*\"","v":"AGS*BCN*BCS*CAM*COA*COL*CHS*CHI*DF*DGO*GTO*GRO*HGO*JAL*MX*MIC*MOR*NAY*NL*OAX*PUE*"}]
["QR","QUERÉTARO","QT",{"$f":"D169&Tabla.EDO.CURP[[#This Row],[Edo.CURP]]&\"*\"","v":"AS*BC*BS*CC*CL*CM*CS*CH*DF*DG*GT*GR*HG*JC*MC*MN*MS*NT*NL*OC*PL*QT*"},{"$f":"E169&Tabla.EDO.CURP[[#This Row],[EDO]]&\"*\"","v":"AGS*BCN*BCS*CAM*COA*COL*CHS*CHI*DF*DGO*GTO*GRO*HGO*JAL*MX*MIC*MOR*NAY*NL*OAX*PUE*QR*"}]
["QRO","QUINTANA ROO","QR",{"$f":"D170&Tabla.EDO.CURP[[#This Row],[Edo.CURP]]&\"*\"","v":"AS*BC*BS*CC*CL*CM*CS*CH*DF*DG*GT*GR*HG*JC*MC*MN*MS*NT*NL*OC*PL*QT*QR*"},{"$f":"E170&Tabla.EDO.CURP[[#This Row],[EDO]]&\"*\"","v":"AGS*BCN*BCS*CAM*COA*COL*CHS*CHI*DF*DGO*GTO*GRO*HGO*JAL*MX*MIC*MOR*NAY*NL*OAX*PUE*QR*QRO*"}]
["SLP","SAN LUIS POTOSÍ","SP",{"$f":"D171&Tabla.EDO.CURP[[#This Row],[Edo.CURP]]&\"*\"","v":"AS*BC*BS*CC*CL*CM*CS*CH*DF*DG*GT*GR*HG*JC*MC*MN*MS*NT*NL*OC*PL*QT*QR*SP*"},{"$f":"E171&Tabla.EDO.CURP[[#This Row],[EDO]]&\"*\"","v":"AGS*BCN*BCS*CAM*COA*COL*CHS*CHI*DF*DGO*GTO*GRO*HGO*JAL*MX*MIC*MOR*NAY*NL*OAX*PUE*QR*QRO*SLP*"}]
["SIN","SINALOA","SL",{"$f":"D172&Tabla.EDO.CURP[[#This Row],[Edo.CURP]]&\"*\"","v":"AS*BC*BS*CC*CL*CM*CS*CH*DF*DG*GT*GR*HG*JC*MC*MN*MS*NT*NL*OC*PL*QT*QR*SP*SL*"},{"$f":"E172&Tabla.EDO.CURP[[#This Row],[EDO]]&\"*\"","v":"AGS*BCN*BCS*CAM*COA*COL*CHS*CHI*DF*DGO*GTO*GRO*HGO*JAL*MX*MIC*MOR*NAY*NL*OAX*PUE*QR*QRO*SLP*SIN*"}]
["SON","SONORA","SR",{"$f":"D173&Tabla.EDO.CURP[[#This Row],[Edo.CURP]]&\"*\"","v":"AS*BC*BS*CC*CL*CM*CS*CH*DF*DG*GT*GR*HG*JC*MC*MN*MS*NT*NL*OC*PL*QT*QR*SP*SL*SR*"},{"$f":"E173&Tabla.EDO.CURP[[#This Row],[EDO]]&\"*\"","v":"AGS*BCN*BCS*CAM*COA*COL*CHS*CHI*DF*DGO*GTO*GRO*HGO*JAL*MX*MIC*MOR*NAY*NL*OAX*PUE*QR*QRO*SLP*SIN*SON*"}]
["TAB","TABASCO","TC",{"$f":"D174&Tabla.EDO.CURP[[#This Row],[Edo.CURP]]&\"*\"","v":"AS*BC*BS*CC*CL*CM*CS*CH*DF*DG*GT*GR*HG*JC*MC*MN*MS*NT*NL*OC*PL*QT*QR*SP*SL*SR*TC*"},{"$f":"E174&Tabla.EDO.CURP[[#This Row],[EDO]]&\"*\"","v":"AGS*BCN*BCS*CAM*COA*COL*CHS*CHI*DF*DGO*GTO*GRO*HGO*JAL*MX*MIC*MOR*NAY*NL*OAX*PUE*QR*QRO*SLP*SIN*SON*TAB*"}]
["TAM","TAMAULIPAS","TS",{"$f":"D175&Tabla.EDO.CURP[[#This Row],[Edo.CURP]]&\"*\"","v":"AS*BC*BS*CC*CL*CM*CS*CH*DF*DG*GT*GR*HG*JC*MC*MN*MS*NT*NL*OC*PL*QT*QR*SP*SL*SR*TC*TS*"},{"$f":"E175&Tabla.EDO.CURP[[#This Row],[EDO]]&\"*\"","v":"AGS*BCN*BCS*CAM*COA*COL*CHS*CHI*DF*DGO*GTO*GRO*HGO*JAL*MX*MIC*MOR*NAY*NL*OAX*PUE*QR*QRO*SLP*SIN*SON*TAB*TAM*"}]
["TLA","TLAXCALA","TL",{"$f":"D176&Tabla.EDO.CURP[[#This Row],[Edo.CURP]]&\"*\"","v":"AS*BC*BS*CC*CL*CM*CS*CH*DF*DG*GT*GR*HG*JC*MC*MN*MS*NT*NL*OC*PL*QT*QR*SP*SL*SR*TC*TS*TL*"},{"$f":"E176&Tabla.EDO.CURP[[#This Row],[EDO]]&\"*\"","v":"AGS*BCN*BCS*CAM*COA*COL*CHS*CHI*DF*DGO*GTO*GRO*HGO*JAL*MX*MIC*MOR*NAY*NL*OAX*PUE*QR*QRO*SLP*SIN*SON*TAB*TAM*TLA*"}]
["VER","VERACRUZ","VZ",{"$f":"D177&Tabla.EDO.CURP[[#This Row],[Edo.CURP]]&\"*\"","v":"AS*BC*BS*CC*CL*CM*CS*CH*DF*DG*GT*GR*HG*JC*MC*MN*MS*NT*NL*OC*PL*QT*QR*SP*SL*SR*TC*TS*TL*VZ*"},{"$f":"E177&Tabla.EDO.CURP[[#This Row],[EDO]]&\"*\"","v":"AGS*BCN*BCS*CAM*COA*COL*CHS*CHI*DF*DGO*GTO*GRO*HGO*JAL*MX*MIC*MOR*NAY*NL*OAX*PUE*QR*QRO*SLP*SIN*SON*TAB*TAM*TLA*VER*"}]
["YUC","YUCATÁN","YN",{"$f":"D178&Tabla.EDO.CURP[[#This Row],[Edo.CURP]]&\"*\"","v":"AS*BC*BS*CC*CL*CM*CS*CH*DF*DG*GT*GR*HG*JC*MC*MN*MS*NT*NL*OC*PL*QT*QR*SP*SL*SR*TC*TS*TL*VZ*YN*"},{"$f":"E178&Tabla.EDO.CURP[[#This Row],[EDO]]&\"*\"","v":"AGS*BCN*BCS*CAM*COA*COL*CHS*CHI*DF*DGO*GTO*GRO*HGO*JAL*MX*MIC*MOR*NAY*NL*OAX*PUE*QR*QRO*SLP*SIN*SON*TAB*TAM*TLA*VER*YUC*"}]
["ZAC","ZACATECAS","ZS",{"$f":"D179&Tabla.EDO.CURP[[#This Row],[Edo.CURP]]&\"*\"","v":"AS*BC*BS*CC*CL*CM*CS*CH*DF*DG*GT*GR*HG*JC*MC*MN*MS*NT*NL*OC*PL*QT*QR*SP*SL*SR*TC*TS*TL*VZ*YN*ZS*"},{"$f":"E179&Tabla.EDO.CURP[[#This Row],[EDO]]&\"*\"","v":"AGS*BCN*BCS*CAM*COA*COL*CHS*CHI*DF*DGO*GTO*GRO*HGO*JAL*MX*MIC*MOR*NAY*NL*OAX*PUE*QR*QRO*SLP*SIN*SON*TAB*TAM*TLA*VER*YUC*ZAC*"}]
["EXT","NACIDO EN EL EXTRANJERO","NE",{"$f":"D180&Tabla.EDO.CURP[[#This Row],[Edo.CURP]]&\"*\"","v":"AS*BC*BS*CC*CL*CM*CS*CH*DF*DG*GT*GR*HG*JC*MC*MN*MS*NT*NL*OC*PL*QT*QR*SP*SL*SR*TC*TS*TL*VZ*YN*ZS*NE*"},{"$f":"E180&Tabla.EDO.CURP[[#This Row],[EDO]]&\"*\"","v":"AGS*BCN*BCS*CAM*COA*COL*CHS*CHI*DF*DGO*GTO*GRO*HGO*JAL*MX*MIC*MOR*NAY*NL*OAX*PUE*QR*QRO*SLP*SIN*SON*TAB*TAM*TLA*VER*YUC*ZAC*EXT*"}]
[{"$f":"SUBTOTAL(103,Tabla.EDO.CURP[EDO])","v":33},null,null,{"$f":"D181","v":"AS*BC*BS*CC*CL*CM*CS*CH*DF*DG*GT*GR*HG*JC*MC*MN*MS*NT*NL*OC*PL*QT*QR*SP*SL*SR*TC*TS*TL*VZ*YN*ZS*NE*"},{"$f":"E181","v":"AGS*BCN*BCS*CAM*COA*COL*CHS*CHI*DF*DGO*GTO*GRO*HGO*JAL*MX*MIC*MOR*NAY*NL*OAX*PUE*QR*QRO*SLP*SIN*SON*TAB*TAM*TLA*VER*YUC*ZAC*EXT*"}]